{"text_format":"1","workbook":"xlsx","n_sheets":12,"sheets":["Contents","1.0 Business & other details","3.1 Revenue","3.2 Opex","3.2.3 Provisions","3.3 Assets (RAB)","3.4 Operational data","3.5 Physical assets","3.6 Quality of service","3.7 Operating environment","3.7.4 Weather stations","Unlocked worksheet"],"not_rendered":{"charts":0,"images":1,"macros":1,"external_links":0,"defined_names":24,"comments":0,"pivot_tables":0},"unopened":[],"bounds":{"document_bytes":16777216,"sheet_cells":100000,"rows_first":2000,"rows_last":500,"rows_between":2000,"halvings":0,"cell_chars":16384,"cell_head_chars":4096},"cells_cut":0,"cells_raw":0,"read":"whole","date_system":"1900"}

{"sheet":"Contents","index":0,"n_rows":12,"n_cols":2,"rows_kept":12,"cut":false,"hidden":false,"merged":[]}
[null,"REGULATORY REPORTING STATEMENT"]
[null,{"$f":"TradingName","v":"Powercor Australia Ltd"}]
[null,{"$f":"CONCATENATE(\"Benchmarking RIN response \",CRY)","v":"Benchmarking RIN response 2014"}]
[]
[null,"CONTENTS"]
[]
[]
[]
[]
[]
[]
[null,"3.             ECONOMIC BENCHMARKING"]

{"sheet":"1.0 Business & other details","index":1,"n_rows":50,"n_cols":7,"rows_kept":50,"cut":false,"hidden":false,"merged":[[23,4,23,7],[7,1,7,8],[11,1,11,8],[13,2,13,7],[14,2,14,4],[17,2,17,3],[17,4,17,7],[18,4,18,7],[19,2,19,3],[19,4,19,7],[22,2,22,3],[22,4,22,7],[30,2,30,3],[30,5,30,6],[48,2,48,8],[24,2,24,3],[24,4,24,7],[28,2,28,3],[28,5,28,6],[29,2,29,3],[29,5,29,6],[33,2,33,3]]}
[null,"REGULATORY REPORTING STATEMENT"]
[null,{"$f":"TradingName","v":"Powercor Australia Ltd"}]
[null,{"$f":"CONCATENATE(\"Benchmarking RIN response \",CRY)","v":"Benchmarking RIN response 2014"}]
[null,"1.2 BUSINESS & OTHER DETAILS"]
[]
[]
[null,"Instructions"]
[null,"Complete the following business details regulatory template before entering data or values in any other regulatory template. This regulatory template is linked to other cells within the spreadsheet and automatically generates column headings."]
[]
[null,"TABLE 1.2.1 - SUBMISSION PARTICULARS INPUT SHEET"]
[]
[null,"Entity details"]
[]
[null,"Trading name","Powercor Australia Ltd"]
[null,"ACN / ABN",64651109]
[]
[]
[null,"Business address","Address 1",null,"40 Market Street"]
[null,null,null,"Address 2"]
[null,null,"Suburb",null,"Melbourne"]
[null,null,null,"State","Vic","p/code",3000]
[]
[null,"Postal address","Address 1",null,"Locked Bag 14090"]
[null,null,null,"Address 2"]
[null,null,"Suburb",null,"Melbourne"]
[null,null,null,"State","Vic","p/code",8001]
[]
[]
[null,"Contact name/s","Hannah Williams"]
[null,"Contact phone/s","03 9683 4088"]
[null,"Contact email address/s","hwilliams@powercor.com.au"]
[]
[]
[null,"Regulatory year","Calendar"]
[null,null,2014]
[]
[]
[]
[]
[null,"Sector","Electricity"]
[null,"Segment","Distribution"]
[null,"Source","Regulatory proposal"]
[null,"Regulatory Year ",2013]
[null,"Reporting Period Type","Financial"]
[null,"RIN Type","EB"]
[null,"Security Classification","Public"]
[null,"Estimated or actual","Consolidated"]
[null,"RIN response - version no.",1]
[null,"RIN response - amendment reason","<If this response is a resubmission because data has been amended, NSP to provide amendment reason>  eg. corrected data errors in tables 3.1.1 & 3.5.1"]
[null,"RIN template - version no.",2]

{"sheet":"3.1 Revenue","index":2,"n_rows":43,"n_cols":6,"rows_kept":43,"cut":false,"hidden":false,"merged":[[8,4,8,5]]}
[null,null,"REGULATORY REPORTING STATEMENT"]
[null,null,{"$f":"TradingName","v":"Powercor Australia Ltd"}]
[null,null,{"$f":"CONCATENATE(\"Benchmarking RIN response \",CRY)","v":"Benchmarking RIN response 2014"}]
[null,null,"3.1 REVENUE"]
[]
[]
[]
[null,null,null,null,"Standard control services","Alternative control services"]
[null,null,null,null,"Actual\n($000's)"]
[null,null,null,null,{"$f":"CRY","v":2014},{"$f":"CRY","v":2014}]
[]
[null,null,"TABLE 3.1.1 - REVENUE GROUPING BY CHARGEABLE QUANTITY"]
["ED_REV311_00001","DREV0101","Revenue from Fixed Customer Charges ",null,47807.238567236331,0]
["ED_REV311_00002","DREV0102","Revenue from Energy Delivery charges where time of use is not a determinant",null,179931.48720758414,0]
["ED_REV311_00003","DREV0103","Revenue from On–Peak Energy Delivery charges ",null,218829.04231007371,0]
["ED_REV311_00004","DREV0104","Revenue from Shoulder period Energy Delivery Charges",null,154.37736103980458,0]
["ED_REV311_00005","DREV0105","Revenue from Off–Peak Energy Delivery charges ",null,31568.798140973937,0]
["ED_REV311_00006","DREV0106","Revenue from controlled load customer charges",null,1644.8413766135081,0]
["ED_REV311_00007","DREV0107","Revenue from unmetered supplies",null,5717.9869824533389,0]
["ED_REV311_00008","DREV0108","Revenue from Contracted Maximum Demand charges",null,103316.00907631654,0]
["ED_REV311_00009","DREV0109","Revenue from Measured Maximum Demand charges",null,0,0]
["ED_REV311_00010","DREV0110","Revenue from metering charges",null,0,0]
["ED_REV311_00011","DREV0111","Revenue from connection charges",null,0,9717.0043945541456]
["ED_REV311_00012","DREV0112","Revenue from public lighting charges",null,0,9305.0248599999468]
["ED_REV311_00013","DREV0113","Revenue from other Sources",null,0,11112.023852999999]
[null,"DREV01","Total revenue by chargeable quantity","$000's",{"$f":"SUM(E13:E25)","v":588969.78102229128},{"$f":"SUM(F13:F25)","v":30134.053107554093}]
[]
[null,null,"TABLE 3.1.2 REVENUE GROUPING BY CUSTOMER TYPE OR CLASS"]
["ED_REV312_00001","DREV0201","Revenue from residential Customers ",null,250516.32997556773,0]
["ED_REV312_00002","DREV0202","Revenue from Non residential customers not on demand tariffs ",null,166163.01251629912,0]
["ED_REV312_00003","DREV0203","Revenue from Non-residential low voltage demand tariff customers ",null,117220.46207259057,0]
["ED_REV312_00004","DREV0204","Revenue from Non-residential high voltage demand tariff customers ",null,49352.00286343741,0]
["ED_REV312_00005","DREV0205","Revenue from unmetered supplies",null,5717.9869824533389,9305.0248599999468]
["ED_REV312_00006","DREV0206","Revenue from Other Customers",null,0,20829.028247554146]
[null,"DREV02","Total revenue by customer class","$000's",{"$f":"SUM(E29:E34)","v":588969.79441034817},{"$f":"SUM(F29:F34)","v":30134.053107554093}]
[]
[null,null,"TABLE 3.1.3 REVENUE (penalties) ALLOWED (deducted) THROUGH INCENTIVE SCHEMES"]
["ED_REV313_00001","DREV0301","EBSS",null,-405,0]
["ED_REV313_00002","DREV0302","STPIS",null,20937,0]
["ED_REV313_00003","DREV0303","F-Factor ",null,2470,0]
["ED_REV313_00004","DREV0304","S-Factor True up",null,-7519,0]
["ED_REV313_00005","DREV0305","Other",null,0,0]
[null,"DREV03","Total revenue of incentive schemes","$000's",{"$f":"SUM(E38:E42)","v":15483},{"$f":"SUM(F38:F42)","v":0}]

{"sheet":"3.2 Opex","index":3,"n_rows":219,"n_cols":6,"rows_kept":219,"cut":false,"hidden":false,"merged":[[11,4,11,5]]}
[null,null,"REGULATORY REPORTING STATEMENT",null,null,"Worksheet navigation"]
[null,null,{"$f":"TradingName","v":"Powercor Australia Ltd"}]
[null,null,{"$f":"CONCATENATE(\"Benchmarking RIN response \",CRY)","v":"Benchmarking RIN response 2014"}]
[null,null,"3.2 OPERATING EXPENDITURE"]
[]
[]
[null,null,"Instructions"]
[null,null,{"$f":"CONCATENATE(TradingName, \" must fill in opex in table 3.2.1 for opex categories reported in response to its annual reporting RIN.\")","v":"Powercor Australia Ltd must fill in opex in table 3.2.1 for opex categories reported in response to its annual reporting RIN."}]
[]
[]
[null,null,null,null,"Standard control services","Alternative control services"]
[null,null,null,null,"Actual\n($000's)"]
[null,null,null,null,{"$f":"CRY","v":2014},{"$f":"CRY","v":2014}]
[]
[null,null,"TABLE 3.2.1 - OPEX CATEGORIES"]
[]
[null,null,"Table 3.2.1.1 Current opex categories  and cost allocations"]
[null,"DOPEX0101","Network Operating costs",null,23034.660330006383,0]
[null,"DOPEX0102","Meter data services",null,0,0]
[null,"DOPEX0103","Billing & Revenue Collection",null,5630.4529422751875,0]
[null,"DOPEX0104","Advertising/ Marketing",null,11.918540983648892,0]
[null,"DOPEX0105","Customer Service",null,7456.7427005857253,0]
[null,"DOPEX0106","Energy Planning",null,0,0]
[null,"DOPEX0107","Regulatory",null,0,0]
[null,"DOPEX0108","Regulatory Reset",null,1096.4833699999999,0]
[null,"DOPEX0109","IT",null,0,0]
[null,"DOPEX0110","Licence Fee",null,18.154250000000001,0]
[null,"DOPEX0111","GSL payments",null,2116.6800335236508,0]
[null,"DOPEX0112","Non-network alternatives costs",null,0,0]
[null,"DOPEX0113","Debt raising costs",null,230.06824761060588,0]
[null,"DOPEX0114","Other",null,6128.8689927924697,0]
[null,"DOPEX0115","AMI",null,0,0]
[null,"DOPEX0116","Public Lighting",null,0,200.66225307887808]
[null,"DOPEX0117","Alternative control -other",null,0,17190.117030725971]
[null,"DOPEX0118","Routine",null,57273.98021607555,0]
[null,"DOPEX0119","Condition based",null,40679.72460109464,0]
[null,"DOPEX0120","Emergency",null,26938.012310809096,0]
[null,"DOPEX0121","SCADA/Network Control",null,1016.8396999999998,0]
[null,"DOPEX0122","Other - Standard Control Services (a)",null,3958.7620950099335,0]
[null,"DOPEX0123","AMI",null,0,0]
[null,"DOPEX0124","Public Lighting",null,0,6731.4591829326437]
[null,"DOPEX0125","Alternative control -other",null,0,3484.1428667618325]
[null,"DOPEX0126","Negotiated services",null,0,0]
[null,"DOPEX0127","Unregulated services",null,0,0]
[null,"DOPEX0128"]
[null,"DOPEX0129"]
[null,"DOPEX0130"]
[null,"DOPEX0131"]
[null,"DOPEX0132"]
[null,"DOPEX0133"]
[null,"DOPEX0134"]
[null,"DOPEX0135"]
[null,"DOPEX0136"]
[null,"DOPEX0137"]
[null,"DOPEX0138"]
[null,"DOPEX0139"]
[null,"DOPEX0140"]
[null,"DOPEX0141"]
[null,"DOPEX0142"]
["ED_OPX3211_99999","DOPEX01","Total opex ","($000's)",{"$f":"SUM(E18:E59)","v":175591.34833076692},{"$f":"SUM(F18:F59)","v":27606.381333499325}]
[]
[]
[null,null,"Table 3.2.1.2A - Historical opex categories and cost allocations",null,{"$f":"CRY","v":2014},{"$f":"CRY","v":2014}]
[null,"DOPEX0101A","Network Operating costs",null,23034.660330006383,0]
[null,"DOPEX0102A","Meter data services",null,0,0]
[null,"DOPEX0103A","Billing & Revenue Collection",null,5630.4529422751875,0]
[null,"DOPEX0104A","Advertising/ Marketing",null,11.918540983648892,0]
[null,"DOPEX0105A","Customer Service",null,7456.7427005857253,0]
[null,"DOPEX0106A","Energy Planning",null,0,0]
[null,"DOPEX0107A","Regulatory",null,0,0]
[null,"DOPEX0108A","Regulatory Reset",null,1096.4833699999999,0]
[null,"DOPEX0109A","IT",null,0,0]
[null,"DOPEX0110A","Licence Fee",null,18.154250000000001,0]
[null,"DOPEX0111A","GSL payments",null,2116.6800335236508,0]
[null,"DOPEX0112A","Non-network alternatives costs",null,0,0]
[null,"DOPEX0113A","Debt raising costs",null,230.06824761060588,0]
[null,"DOPEX0114A","Other",null,6128.8689927924697,0]
[null,"DOPEX0115A","AMI",null,0,0]
[null,"DOPEX0116A","Public Lighting",null,0,200.66225307887808]
[null,"DOPEX0117A","Alternative control -other",null,0,17190.117030725971]
[null,"DOPEX0118A","Routine",null,57273.98021607555,0]
[null,"DOPEX0119A","Condition based",null,40679.72460109464,0]
[null,"DOPEX0120A","Emergency",null,26938.012310809096,0]
[null,"DOPEX0121A","SCADA/Network Control",null,1016.8396999999998,0]
[null,"DOPEX0122A","Other - Standard Control Services (a)",null,3958.7620950099335,0]
[null,"DOPEX0123A","AMI",null,0,0]
[null,"DOPEX0124A","Public Lighting",null,0,6731.4591829326437]
[null,"DOPEX0125A","Alternative control -other",null,0,3484.1428667618325]
[null,"DOPEX0126A","Negotiated services",null,0,0]
[null,"DOPEX0127A","Unregulated services",null,0,0]
[null,"DOPEX0128A"]
[null,"DOPEX0129A"]
[null,"DOPEX0130A"]
[null,"DOPEX0131A"]
[null,"DOPEX0132A"]
[null,"DOPEX0133A"]
[null,"DOPEX0134A"]
[null,"DOPEX0135A"]
[null,"DOPEX0136A"]
[null,"DOPEX0137A"]
[null,"DOPEX0138A"]
[null,"DOPEX0139A"]
[null,"DOPEX0140A"]
[null,"DOPEX0141A"]
[null,"DOPEX0142A"]
["ED_OPX3212A_99999","DOPEX01A","Total opex ","($000's)",{"$f":"SUM(E64:E105)","v":175591.34833076692},{"$f":"SUM(F64:F105)","v":27606.381333499325}]
[]
[null,null,"Table 3.2.1.2B - Historical opex categories and cost allocations",null,{"$f":"CRY","v":2014},{"$f":"CRY","v":2014}]
[null,"DOPEX0101B"]
[null,"DOPEX0102B"]
[null,"DOPEX0103B"]
[null,"DOPEX0104B"]
[null,"DOPEX0105B"]
[null,"DOPEX0106B"]
[null,"DOPEX0107B"]
[null,"DOPEX0108B"]
[null,"DOPEX0109B"]
[null,"DOPEX0110B"]
[null,"DOPEX0111B"]
[null,"DOPEX0112B"]
[null,"DOPEX0113B"]
[null,"DOPEX0114B"]
[null,"DOPEX0115B"]
[null,"DOPEX0116B"]
[null,"DOPEX0117B"]
[null,"DOPEX0118B"]
[null,"DOPEX0119B"]
[null,"DOPEX0120B"]
[null,"DOPEX0121B"]
[null,"DOPEX0122B"]
[null,"DOPEX0123B"]
[null,"DOPEX0124B"]
[null,"DOPEX0125B"]
[null,"DOPEX0126B"]
[null,"DOPEX0127B"]
[null,"DOPEX0128B"]
[null,"DOPEX0129B"]
[null,"DOPEX0130B"]
[null,"DOPEX0131B"]
[null,"DOPEX0132B"]
[null,"DOPEX0133B"]
[null,"DOPEX0134B"]
[null,"DOPEX0135B"]
[null,"DOPEX0136B"]
[null,"DOPEX0137B"]
[null,"DOPEX0138B"]
[null,"DOPEX0139B"]
[null,"DOPEX0140B"]
[null,"DOPEX0141B"]
[null,"DOPEX0142B"]
["ED_OPX3212B_99999","DOPEX01B","Total opex ","($000's)",{"$f":"SUM(E109:E150)","v":0},{"$f":"SUM(F109:F150)","v":0}]
[]
[null,null,"Table 3.2.1.2C - Historical opex categories and cost allocations",null,{"$f":"CRY","v":2014},{"$f":"CRY","v":2014}]
[null,"DOPEX0101C"]
[null,"DOPEX0102C"]
[null,"DOPEX0103C"]
[null,"DOPEX0104C"]
[null,"DOPEX0105C"]
[null,"DOPEX0106C"]
[null,"DOPEX0107C"]
[null,"DOPEX0108C"]
[null,"DOPEX0109C"]
[null,"DOPEX0110C"]
[null,"DOPEX0111C"]
[null,"DOPEX0112C"]
[null,"DOPEX0113C"]
[null,"DOPEX0114C"]
[null,"DOPEX0115C"]
[null,"DOPEX0116C"]
[null,"DOPEX0117C"]
[null,"DOPEX0118C"]
[null,"DOPEX0119C"]
[null,"DOPEX0120C"]
[null,"DOPEX0121C"]
[null,"DOPEX0122C"]
[null,"DOPEX0123C"]
[null,"DOPEX0124C"]
[null,"DOPEX0125C"]
[null,"DOPEX0126C"]
[null,"DOPEX0127C"]
[null,"DOPEX0128C"]
[null,"DOPEX0129C"]
[null,"DOPEX0130C"]
[null,"DOPEX0131C"]
[null,"DOPEX0132C"]
[null,"DOPEX0133C"]
[null,"DOPEX0134C"]
[null,"DOPEX0135C"]
[null,"DOPEX0136C"]
[null,"DOPEX0137C"]
[null,"DOPEX0138C"]
[null,"DOPEX0139C"]
[null,"DOPEX0140C"]
[null,"DOPEX0141C"]
[null,"DOPEX0142C"]
["ED_OPX3212C_99999","DOPEX01C","Total opex ","($000's)",{"$f":"SUM(E154:E195)","v":0},{"$f":"SUM(F154:F195)","v":0}]
[]
[null,null,"TABLE 3.2.2 - OPEX CONSISTENCY"]
[]
[null,null,"Table 3.2.2.1  Opex consistency - current cost allocation approach",null,{"$f":"CRY","v":2014},{"$f":"CRY","v":2014}]
["ED_OPX3221_00001","DOPEX0201","Opex for network services",null,151526.80194230785,0]
["ED_OPX3221_00002","DOPEX0202","Opex for metering",null,0,0]
["ED_OPX3221_00003","DOPEX0203","Opex for connection services",null,23431.746388459091,10835.205277490804]
["ED_OPX3221_00004","DOPEX0204","Opex for public lighting",null,0,6932.1214360115218]
["ED_OPX3221_00005","DOPEX0205","Opex for amounts payable for easement levy or similar direct charges on DNSP",null,0,0]
["ED_OPX3221_00006","DOPEX0206","Opex for transmission connection point planning",null,632.79999999999995,0]
[null,null,"Total opex ","($000's)",{"$f":"SUM(E201:E206)","v":175591.34833076692},{"$f":"SUM(F201:F206)","v":17767.326713502327}]
[]
[null,null,"Table 3.2.2.2  Opex consistency - historical cost allocation approaches",null,{"$f":"CRY","v":2014},{"$f":"CRY","v":2014}]
["ED_OPX3222_00001","DOPEX0201A","Opex for network services",null,151526.80194230785,0]
["ED_OPX3222_00002","DOPEX0202A","Opex for metering",null,0,0]
["ED_OPX3222_00003","DOPEX0203A","Opex for connection services",null,23431.746388459091,10835.205277490804]
["ED_OPX3222_00004","DOPEX0204A","Opex for public lighting",null,0,6932.1214360115218]
["ED_OPX3222_00005","DOPEX0205A","Opex for amounts payable for easement levy or similar direct charges on DNSP",null,0,0]
["ED_OPX3222_00006","DOPEX0206A","Opex for transmission connection point planning",null,632.79999999999995,0]
[null,null,"Total opex ","($000's)",{"$f":"SUM(E210:E215)","v":175591.34833076692},{"$f":"SUM(F210:F215)","v":17767.326713502327}]
[]
[null,null,"TABLE 3.2.4 - OPEX FOR HIGH VOLTAGE CUSTOMERS",null,"End user costs (not standard control services)"]
["ED_OPX324_00001","DOPEX0401","Opex for high voltage customers","($000's)",371.81885989702403]

{"sheet":"3.2.3 Provisions","index":4,"n_rows":373,"n_cols":5,"rows_kept":373,"cut":false,"hidden":false,"merged":[]}
[null,null,"REGULATORY REPORTING STATEMENT"]
[null,null,{"$f":"TradingName","v":"Powercor Australia Ltd"}]
[null,null,{"$f":"CONCATENATE(\"Benchmarking RIN response \",CRY)","v":"Benchmarking RIN response 2014"}]
[null,null,"3.2 OPERATING EXPENDITURE"]
[]
[null,null,"Instructions"]
[null,null,{"$f":"CONCATENATE(TradingName, \" must fill in opex in table 3.2.3 for opex categories reported in response to its annual reporting RIN.\")","v":"Powercor Australia Ltd must fill in opex in table 3.2.3 for opex categories reported in response to its annual reporting RIN."}]
[]
[null,null,"TABLE 3.2.3 - PROVISIONS"]
[null,null,"For each provision report:"]
[null,null,null,null,"$000's"]
[null,null,null,null,{"$f":"CRY","v":2014}]
[]
[null,"DOPEX03A","Provision for Accident Compensation"]
[null,null,"Represents an estimation of settlement, administration and legal costs associated with investigating and defending employee compensation claims."]
[null,"DOPEX0301A","Opening balance (the carrying amount at the beginning of the period)",null,0]
[null,null,"Additional provisions made in the period, including increases to existing provisions"]
[null,"DOPEX0302A","Opex component",null,0]
[null,"DOPEX0303A","Capex component",null,0]
[null,"DOPEX0304A","Other component",null,0]
[null,null,"Amounts used (that is, incurred and charged against the provision) during the period"]
[null,"DOPEX0305A","Opex component",null,0]
[null,"DOPEX0306A","Capex component",null,0]
[null,"DOPEX0307A","Other component",null,0]
[null,null,"Unused amounts reversed during the period"]
[null,"DOPEX0308A","Opex component",null,0]
[null,"DOPEX0309A","Capex component",null,0]
[null,"DOPEX0310A","Other component",null,0]
[null,null,"The increase during the period in the discounted amount arising from the passage of time and the effect of any change in the discount rate"]
[null,"DOPEX0311A","Opex component",null,0]
[null,"DOPEX0312A","Capex component",null,0]
[null,"DOPEX0313A","Other component",null,0]
[null,"DOPEX0314A","Closing balance (carrying amount at the end of the period)",null,0]
[null,"DOPEX03B","Provision for Uninsured Losses"]
[null,null,"Provision for claims relating to damages sustained from Network assets."]
[null,"DOPEX0301B","Opening balance (the carrying amount at the beginning of the period)",null,-689.6736099999996]
[null,null,"Additional provisions made in the period, including increases to existing provisions"]
[null,"DOPEX0302B","Opex component",null,-797.3390599999999]
[null,"DOPEX0303B","Capex component",null,0]
[null,"DOPEX0304B","Other component",null,0]
[null,null,"Amounts used (that is, incurred and charged against the provision) during the period"]
[null,"DOPEX0305B","Opex component",null,0]
[null,"DOPEX0306B","Capex component",null,0]
[null,"DOPEX0307B","Other component",null,0]
[null,null,"Unused amounts reversed during the period"]
[null,"DOPEX0308B","Opex component",null,9.4372699999999998]
[null,"DOPEX0309B","Capex component",null,0]
[null,"DOPEX0310B","Other component",null,0]
[null,null,"The increase during the period in the discounted amount arising from the passage of time and the effect of any change in the discount rate"]
[null,"DOPEX0311B","Opex component",null,0]
[null,"DOPEX0312B","Capex component",null,0]
[null,"DOPEX0313B","Other component",null,0]
[null,"DOPEX0314B","Closing balance (carrying amount at the end of the period)",null,-1477.5753999999997]
[null,"DOPEX03C","Provision for Customer Refunds"]
[null,null,"Represents the present value of the best estimate of the future sacrifice of economic benefits that will be required to settle claims for billings adjustments that relate to the prior year"]
[null,"DOPEX0301C","Opening balance (the carrying amount at the beginning of the period)",null,0]
[null,null,"Additional provisions made in the period, including increases to existing provisions"]
[null,"DOPEX0302C","Opex component",null,0]
[null,"DOPEX0303C","Capex component",null,0]
[null,"DOPEX0304C","Other component",null,0]
[null,null,"Amounts used (that is, incurred and charged against the provision) during the period"]
[null,"DOPEX0305C","Opex component",null,0]
[null,"DOPEX0306C","Capex component",null,0]
[null,"DOPEX0307C","Other component",null,0]
[null,null,"Unused amounts reversed during the period"]
[null,"DOPEX0308C","Opex component",null,0]
[null,"DOPEX0309C","Capex component",null,0]
[null,"DOPEX0310C","Other component",null,0]
[null,null,"The increase during the period in the discounted amount arising from the passage of time and the effect of any change in the discount rate"]
[null,"DOPEX0311C","Opex component",null,0]
[null,"DOPEX0312C","Capex component",null,0]
[null,"DOPEX0313C","Other component",null,0]
[null,"DOPEX0314C","Closing balance (carrying amount at the end of the period)",null,0]
[null,"DOPEX03D","Provision for Stock Write Down"]
[null,null,"Relates to materials and or stock held for maintenance and repair of Network Assets."]
[null,"DOPEX0301D","Opening balance (the carrying amount at the beginning of the period)",null,-45.33054999999996]
[null,null,"Additional provisions made in the period, including increases to existing provisions"]
[null,"DOPEX0302D","Opex component",null,0]
[null,"DOPEX0303D","Capex component",null,0]
[null,"DOPEX0304D","Other component",null,0]
[null,null,"Amounts used (that is, incurred and charged against the provision) during the period"]
[null,"DOPEX0305D","Opex component",null,0]
[null,"DOPEX0306D","Capex component",null,0]
[null,"DOPEX0307D","Other component",null,0]
[null,null,"Unused amounts reversed during the period"]
[null,"DOPEX0308D","Opex component",null,0]
[null,"DOPEX0309D","Capex component",null,0]
[null,"DOPEX0310D","Other component",null,0]
[null,null,"The increase during the period in the discounted amount arising from the passage of time and the effect of any change in the discount rate"]
[null,"DOPEX0311D","Opex component",null,0]
[null,"DOPEX0312D","Capex component",null,0]
[null,"DOPEX0313D","Other component",null,0]
[null,"DOPEX0314D","Closing balance (carrying amount at the end of the period)",null,-45.33054999999996]
[null,"DOPEX03E","Provision for Employee Entitlements"]
[null,null,"Provision made to meet the future annual leave and long service leave entitlements of employees."]
[null,"DOPEX0301E","Opening balance (the carrying amount at the beginning of the period)",null,-53982.552513159942]
[null,null,"Additional provisions made in the period, including increases to existing provisions"]
[null,"DOPEX0302E","Opex component",null,-6876.6491813983466]
[null,"DOPEX0303E","Capex component",null,-10936.532528601645]
[null,"DOPEX0304E","Other component",null,0]
[null,null,"Amounts used (that is, incurred and charged against the provision) during the period"]
[null,"DOPEX0305E","Opex component",null,7907.428662679732]
[null,"DOPEX0306E","Capex component",null,13117.50001732027]
[null,"DOPEX0307E","Other component",null,0]
[null,null,"Unused amounts reversed during the period"]
[null,"DOPEX0308E","Opex component",null,0]
[null,"DOPEX0309E","Capex component",null,0]
[null,"DOPEX0310E","Other component",null,0]
[null,null,"The increase during the period in the discounted amount arising from the passage of time and the effect of any change in the discount rate"]
[null,"DOPEX0311E","Opex component",null,-1309.33051]
[null,"DOPEX0312E","Capex component",null,0]
[null,"DOPEX0313E","Other component",null,0]
[null,"DOPEX0314E","Closing balance (carrying amount at the end of the period)",null,-52080.136053159928]
[null,"DOPEX03F","Provision for Doubtful Debt"]
[null,null,"Provision against doubtful tariff and non-tariff receivables."]
[null,"DOPEX0301F","Opening balance (the carrying amount at the beginning of the period)",null,-1320.9984000000004]
[null,null,"Additional provisions made in the period, including increases to existing provisions"]
[null,"DOPEX0302F","Opex component",null,0]
[null,"DOPEX0303F","Capex component",null,0]
[null,"DOPEX0304F","Other component",null,0]
[null,null,"Amounts used (that is, incurred and charged against the provision) during the period"]
[null,"DOPEX0305F","Opex component",null,0]
[null,"DOPEX0306F","Capex component",null,0]
[null,"DOPEX0307F","Other component",null,0]
[null,null,"Unused amounts reversed during the period"]
[null,"DOPEX0308F","Opex component",null,633.5]
[null,"DOPEX0309F","Capex component",null,0]
[null,"DOPEX0310F","Other component",null,0]
[null,null,"The increase during the period in the discounted amount arising from the passage of time and the effect of any change in the discount rate"]
[null,"DOPEX0311F","Opex component",null,0]
[null,"DOPEX0312F","Capex component",null,0]
[null,"DOPEX0313F","Other component",null,0]
[null,"DOPEX0314F","Closing balance (carrying amount at the end of the period)",null,-687.4984000000004]
[null,"DOPEX03G","Provision for Restorations (Vegetation Management)"]
[null,null,"Represents the future incremental vegetation clearance expenditure associated with network assets."]
[null,"DOPEX0301G","Opening balance (the carrying amount at the beginning of the period)",null,-0.46600000000125874]
[null,null,"Additional provisions made in the period, including increases to existing provisions"]
[null,"DOPEX0302G","Opex component",null,0]
[null,"DOPEX0303G","Capex component",null,0]
[null,"DOPEX0304G","Other component",null,0]
[null,null,"Amounts used (that is, incurred and charged against the provision) during the period"]
[null,"DOPEX0305G","Opex component",null,0]
[null,"DOPEX0306G","Capex component",null,0]
[null,"DOPEX0307G","Other component",null,0]
[null,null,"Unused amounts reversed during the period"]
[null,"DOPEX0308G","Opex component",null,0]
[null,"DOPEX0309G","Capex component",null,0]
[null,"DOPEX0310G","Other component",null,0]
[null,null,"The increase during the period in the discounted amount arising from the passage of time and the effect of any change in the discount rate"]
[null,"DOPEX0311G","Opex component",null,0]
[null,"DOPEX0312G","Capex component",null,0]
[null,"DOPEX0313G","Other component",null,0]
[null,"DOPEX0314G","Closing balance (carrying amount at the end of the period)",null,-0.46600000000125874]
[null,"DOPEX03H","Provision for Redundancies"]
[null,null,"Represents an estimate of employee redundancy expenditure."]
[null,"DOPEX0301H","Opening balance (the carrying amount at the beginning of the period)",null,-0.85566000000000031]
[null,null,"Additional provisions made in the period, including increases to existing provisions"]
[null,"DOPEX0302H","Opex component",null,0]
[null,"DOPEX0303H","Capex component",null,0]
[null,"DOPEX0304H","Other component",null,0]
[null,null,"Amounts used (that is, incurred and charged against the provision) during the period"]
[null,"DOPEX0305H","Opex component",null,0]
[null,"DOPEX0306H","Capex component",null,0]
[null,"DOPEX0307H","Other component",null,0]
[null,null,"Unused amounts reversed during the period"]
[null,"DOPEX0308H","Opex component",null,0]
[null,"DOPEX0309H","Capex component",null,0]
[null,"DOPEX0310H","Other component",null,0]
[null,null,"The increase during the period in the discounted amount arising from the passage of time and the effect of any change in the discount rate"]
[null,"DOPEX0311H","Opex component",null,0]
[null,"DOPEX0312H","Capex component",null,0]
[null,"DOPEX0313H","Other component",null,0]
[null,"DOPEX0314H","Closing balance (carrying amount at the end of the period)",null,-0.85566000000000031]
[null,"DOPEX03I","Provision name"]
[null,null,"Brief description of provision"]
[null,"DOPEX0301I","Opening balance (the carrying amount at the beginning of the period)"]
[null,null,"Additional provisions made in the period, including increases to existing provisions"]
[null,"DOPEX0302I","Opex component"]
[null,"DOPEX0303I","Capex component"]
[null,"DOPEX0304I","Other component"]
[null,null,"Amounts used (that is, incurred and charged against the provision) during the period"]
[null,"DOPEX0305I","Opex component"]
[null,"DOPEX0306I","Capex component"]
[null,"DOPEX0307I","Other component"]
[null,null,"Unused amounts reversed during the period"]
[null,"DOPEX0308I","Opex component"]
[null,"DOPEX0309I","Capex component"]
[null,"DOPEX0310I","Other component"]
[null,null,"The increase during the period in the discounted amount arising from the passage of time and the effect of any change in the discount rate"]
[null,"DOPEX0311I","Opex component"]
[null,"DOPEX0312I","Capex component"]
[null,"DOPEX0313I","Other component"]
[null,"DOPEX0314I","Closing balance (carrying amount at the end of the period)"]
[null,"DOPEX03J","Provision name"]
[null,null,"Brief description of provision"]
[null,"DOPEX0301J","Opening balance (the carrying amount at the beginning of the period)"]
[null,null,"Additional provisions made in the period, including increases to existing provisions"]
[null,"DOPEX0302J","Opex component"]
[null,"DOPEX0303J","Capex component"]
[null,"DOPEX0304J","Other component"]
[null,null,"Amounts used (that is, incurred and charged against the provision) during the period"]
[null,"DOPEX0305J","Opex component"]
[null,"DOPEX0306J","Capex component"]
[null,"DOPEX0307J","Other component"]
[null,null,"Unused amounts reversed during the period"]
[null,"DOPEX0308J","Opex component"]
[null,"DOPEX0309J","Capex component"]
[null,"DOPEX0310J","Other component"]
[null,null,"The increase during the period in the discounted amount arising from the passage of time and the effect of any change in the discount rate"]
[null,"DOPEX0311J","Opex component"]
[null,"DOPEX0312J","Capex component"]
[null,"DOPEX0313J","Other component"]
[null,"DOPEX0314J","Closing balance (carrying amount at the end of the period)"]
[null,"DOPEX03K","Provision name"]
[null,null,"Brief description of provision"]
[null,"DOPEX0301K","Opening balance (the carrying amount at the beginning of the period)"]
[null,null,"Additional provisions made in the period, including increases to existing provisions"]
[null,"DOPEX0302K","Opex component"]
[null,"DOPEX0303K","Capex component"]
[null,"DOPEX0304K","Other component"]
[null,null,"Amounts used (that is, incurred and charged against the provision) during the period"]
[null,"DOPEX0305K","Opex component"]
[null,"DOPEX0306K","Capex component"]
[null,"DOPEX0307K","Other component"]
[null,null,"Unused amounts reversed during the period"]
[null,"DOPEX0308K","Opex component"]
[null,"DOPEX0309K","Capex component"]
[null,"DOPEX0310K","Other component"]
[null,null,"The increase during the period in the discounted amount arising from the passage of time and the effect of any change in the discount rate"]
[null,"DOPEX0311K","Opex component"]
[null,"DOPEX0312K","Capex component"]
[null,"DOPEX0313K","Other component"]
[null,"DOPEX0314K","Closing balance (carrying amount at the end of the period)"]
[null,"DOPEX03L","Provision name"]
[null,null,"Brief description of provision"]
[null,"DOPEX0301L","Opening balance (the carrying amount at the beginning of the period)"]
[null,null,"Additional provisions made in the period, including increases to existing provisions"]
[null,"DOPEX0302L","Opex component"]
[null,"DOPEX0303L","Capex component"]
[null,"DOPEX0304L","Other component"]
[null,null,"Amounts used (that is, incurred and charged against the provision) during the period"]
[null,"DOPEX0305L","Opex component"]
[null,"DOPEX0306L","Capex component"]
[null,"DOPEX0307L","Other component"]
[null,null,"Unused amounts reversed during the period"]
[null,"DOPEX0308L","Opex component"]
[null,"DOPEX0309L","Capex component"]
[null,"DOPEX0310L","Other component"]
[null,null,"The increase during the period in the discounted amount arising from the passage of time and the effect of any change in the discount rate"]
[null,"DOPEX0311L","Opex component"]
[null,"DOPEX0312L","Capex component"]
[null,"DOPEX0313L","Other component"]
[null,"DOPEX0314L","Closing balance (carrying amount at the end of the period)"]
[null,"DOPEX03M","Provision name"]
[null,null,"Brief description of provision"]
[null,"DOPEX0301M","Opening balance (the carrying amount at the beginning of the period)"]
[null,null,"Additional provisions made in the period, including increases to existing provisions"]
[null,"DOPEX0302M","Opex component"]
[null,"DOPEX0303M","Capex component"]
[null,"DOPEX0304M","Other component"]
[null,null,"Amounts used (that is, incurred and charged against the provision) during the period"]
[null,"DOPEX0305M","Opex component"]
[null,"DOPEX0306M","Capex component"]
[null,"DOPEX0307M","Other component"]
[null,null,"Unused amounts reversed during the period"]
[null,"DOPEX0308M","Opex component"]
[null,"DOPEX0309M","Capex component"]
[null,"DOPEX0310M","Other component"]
[null,null,"The increase during the period in the discounted amount arising from the passage of time and the effect of any change in the discount rate"]
[null,"DOPEX0311M","Opex component"]
[null,"DOPEX0312M","Capex component"]
[null,"DOPEX0313M","Other component"]
[null,"DOPEX0314M","Closing balance (carrying amount at the end of the period)"]
[null,"DOPEX03N","Provision name"]
[null,null,"Brief description of provision"]
[null,"DOPEX0301N","Opening balance (the carrying amount at the beginning of the period)"]
[null,null,"Additional provisions made in the period, including increases to existing provisions"]
[null,"DOPEX0302N","Opex component"]
[null,"DOPEX0303N","Capex component"]
[null,"DOPEX0304N","Other component"]
[null,null,"Amounts used (that is, incurred and charged against the provision) during the period"]
[null,"DOPEX0305N","Opex component"]
[null,"DOPEX0306N","Capex component"]
[null,"DOPEX0307N","Other component"]
[null,null,"Unused amounts reversed during the period"]
[null,"DOPEX0308N","Opex component"]
[null,"DOPEX0309N","Capex component"]
[null,"DOPEX0310N","Other component"]
[null,null,"The increase during the period in the discounted amount arising from the passage of time and the effect of any change in the discount rate"]
[null,"DOPEX0311N","Opex component"]
[null,"DOPEX0312N","Capex component"]
[null,"DOPEX0313N","Other component"]
[null,"DOPEX0314N","Closing balance (carrying amount at the end of the period)"]
[null,"DOPEX03O","Provision name"]
[null,null,"Brief description of provision"]
[null,"DOPEX0301O","Opening balance (the carrying amount at the beginning of the period)"]
[null,null,"Additional provisions made in the period, including increases to existing provisions"]
[null,"DOPEX0302O","Opex component"]
[null,"DOPEX0303O","Capex component"]
[null,"DOPEX0304O","Other component"]
[null,null,"Amounts used (that is, incurred and charged against the provision) during the period"]
[null,"DOPEX0305O","Opex component"]
[null,"DOPEX0306O","Capex component"]
[null,"DOPEX0307O","Other component"]
[null,null,"Unused amounts reversed during the period"]
[null,"DOPEX0308O","Opex component"]
[null,"DOPEX0309O","Capex component"]
[null,"DOPEX0310O","Other component"]
[null,null,"The increase during the period in the discounted amount arising from the passage of time and the effect of any change in the discount rate"]
[null,"DOPEX0311O","Opex component"]
[null,"DOPEX0312O","Capex component"]
[null,"DOPEX0313O","Other component"]
[null,"DOPEX0314O","Closing balance (carrying amount at the end of the period)"]
[null,"DOPEX03P","Provision name"]
[null,null,"Brief description of provision"]
[null,"DOPEX0301P","Opening balance (the carrying amount at the beginning of the period)"]
[null,null,"Additional provisions made in the period, including increases to existing provisions"]
[null,"DOPEX0302P","Opex component"]
[null,"DOPEX0303P","Capex component"]
[null,"DOPEX0304P","Other component"]
[null,null,"Amounts used (that is, incurred and charged against the provision) during the period"]
[null,"DOPEX0305P","Opex component"]
[null,"DOPEX0306P","Capex component"]
[null,"DOPEX0307P","Other component"]
[null,null,"Unused amounts reversed during the period"]
[null,"DOPEX0308P","Opex component"]
[null,"DOPEX0309P","Capex component"]
[null,"DOPEX0310P","Other component"]
[null,null,"The increase during the period in the discounted amount arising from the passage of time and the effect of any change in the discount rate"]
[null,"DOPEX0311P","Opex component"]
[null,"DOPEX0312P","Capex component"]
[null,"DOPEX0313P","Other component"]
[null,"DOPEX0314P","Closing balance (carrying amount at the end of the period)"]
[null,"DOPEX03Q","Provision name"]
[null,null,"Brief description of provision"]
[null,"DOPEX0301Q","Opening balance (the carrying amount at the beginning of the period)"]
[null,null,"Additional provisions made in the period, including increases to existing provisions"]
[null,"DOPEX0302Q","Opex component"]
[null,"DOPEX0303Q","Capex component"]
[null,"DOPEX0304Q","Other component"]
[null,null,"Amounts used (that is, incurred and charged against the provision) during the period"]
[null,"DOPEX0305Q","Opex component"]
[null,"DOPEX0306Q","Capex component"]
[null,"DOPEX0307Q","Other component"]
[null,null,"Unused amounts reversed during the period"]
[null,"DOPEX0308Q","Opex component"]
[null,"DOPEX0309Q","Capex component"]
[null,"DOPEX0310Q","Other component"]
[null,null,"The increase during the period in the discounted amount arising from the passage of time and the effect of any change in the discount rate"]
[null,"DOPEX0311Q","Opex component"]
[null,"DOPEX0312Q","Capex component"]
[null,"DOPEX0313Q","Other component"]
[null,"DOPEX0314Q","Closing balance (carrying amount at the end of the period)"]
[null,"DOPEX03R","Provision name"]
[null,null,"Brief description of provision"]
[null,"DOPEX0301R","Opening balance (the carrying amount at the beginning of the period)"]
[null,null,"Additional provisions made in the period, including increases to existing provisions"]
[null,"DOPEX0302R","Opex component"]
[null,"DOPEX0303R","Capex component"]
[null,"DOPEX0304R","Other component"]
[null,null,"Amounts used (that is, incurred and charged against the provision) during the period"]
[null,"DOPEX0305R","Opex component"]
[null,"DOPEX0306R","Capex component"]
[null,"DOPEX0307R","Other component"]
[null,null,"Unused amounts reversed during the period"]
[null,"DOPEX0308R","Opex component"]
[null,"DOPEX0309R","Capex component"]
[null,"DOPEX0310R","Other component"]
[null,null,"The increase during the period in the discounted amount arising from the passage of time and the effect of any change in the discount rate"]
[null,"DOPEX0311R","Opex component"]
[null,"DOPEX0312R","Capex component"]
[null,"DOPEX0313R","Other component"]
[null,"DOPEX0314R","Closing balance (carrying amount at the end of the period)"]

{"sheet":"3.3 Assets (RAB)","index":5,"n_rows":137,"n_cols":7,"rows_kept":137,"cut":false,"hidden":false,"merged":[[115,4,115,6],[7,4,7,6]]}
[null,null,"REGULATORY REPORTING STATEMENT"]
[null,null,{"$f":"TradingName","v":"Powercor Australia Ltd"}]
[null,null,{"$f":"CONCATENATE(\"Benchmarking RIN response \",CRY)","v":"Benchmarking RIN response 2014"}]
[null,null,"3.3 ASSETS"]
[]
[]
[null,null,null,null,"Network services","Standard control services","Alternative control services"]
[null,null,null,null,"Actual\n($000's)"]
[null,null,null,null,{"$f":"CRY","v":2014},{"$f":"CRY","v":2014},2014]
[]
[null,null,"TABLE 3.3.1 - REGULATORY ASSET BASE VALUES"]
[null,null,"For total asset base:"]
["ED_RAB331_00001","DRAB0101","Opening value",null,2350575.2354074488,2868053.3817780269,18147.508000000002]
["ED_RAB331_00002","DRAB0102","Inflation addition",null,50798.286030416275,61981.507268287292,0]
["ED_RAB331_00003","DRAB0103","Straight line depreciation",null,-123402.92996482523,-156351.69778265263,-1112.4480000000001]
["ED_RAB331_00004","DRAB0104","Regulatory depreciation",null,{"$f":"SUM(E15+E14)","v":-72604.643934408959},{"$f":"SUM(F15+F14)","v":-94370.190514365328},{"$f":"SUM(G15+G14)","v":-1112.4480000000001}]
["ED_RAB331_00005","DRAB0105","Actual additions (recognised in RAB)",null,296383.71860063414,349260.06965791166,4157.7470000000003]
["ED_RAB331_00006","DRAB0106","Disposals ",null,-1474.1047100000003,-1474.1047100000003,0]
["ED_RAB331_00007","DRAB0107","Closing value for overhead distribution asset value",null,{"$f":"SUM(E13+E14+E15+E17+E18)","v":2572880.2053636741},{"$f":"SUM(F13+F14+F15+F17+F18)","v":3121469.1562115732},{"$f":"SUM(G13+G14+G15+G17+G18)","v":21192.807000000001}]
[]
[null,null,"TABLE 3.3.2 - ASSET VALUE ROLL FORWARD"]
[null,null,"For overhead network assets less than 33kV:"]
["ED_RAB3321_00001","DRAB0201","Opening value",null,1032242.5599693705,1257249.8224848907,0]
["ED_RAB3321_00002","DRAB0202","Inflation addition",null,22307.795991479477,27170.428383759863,0]
["ED_RAB3321_00003","DRAB0203","Straight line depreciation",null,-39346.254501726093,-47922.914057339702,0]
["ED_RAB3321_00004","DRAB0204","Regulatory depreciation",null,{"$f":"SUM(E25+E24)","v":-17038.458510246615},{"$f":"SUM(F25+F24)","v":-20752.485673579838},0]
["ED_RAB3321_00005","DRAB0205","Actual additions (recognised in RAB)",null,117711.80220871999,143370.5101596287,0]
["ED_RAB3321_00006","DRAB0206","Disposals ",null,0,0,0]
["ED_RAB3321_00007","DRAB0207","Closing value for overhead distribution asset value",null,{"$f":"SUM(E23+E24+E25+E27+E28)","v":1132915.9036678437},{"$f":"SUM(F23+F24+F25+F27+F28)","v":1379867.8469709395},0]
[null,null,"For underground network assets less than 33kV:"]
["ED_RAB3322_00001","DRAB0301","Opening value",null,525724.09824146645,640320.94279248244,0]
["ED_RAB3322_00002","DRAB0302","Inflation addition",null,11361.424519953081,13837.977152686231,0]
["ED_RAB3322_00003","DRAB0303","Straight line depreciation",null,-20039.160338160229,-24407.277664123627,0]
["ED_RAB3322_00004","DRAB0304","Regulatory depreciation",null,{"$f":"SUM(E33+E32)","v":-8677.7358182071475},{"$f":"SUM(F33+F32)","v":-10569.300511437395},0]
["ED_RAB3322_00005","DRAB0305","Actual additions (recognised in RAB)",null,59950.958687843136,73019.012285568169,0]
["ED_RAB3322_00006","DRAB0306","Disposals ",null,0,0,0]
["ED_RAB3322_00007","DRAB0307","Closing value for underground asset value",null,{"$f":"SUM(E31+E32+E33+E35+E36)","v":576997.32111110247},{"$f":"SUM(F31+F32+F33+F35+F36)","v":702770.65456661314},0]
[null,null,"For distribution substations and transformers:"]
["ED_RAB3323_00001","DRAB0401","Opening value",null,253665.96850862907,308959.83778017742,0]
["ED_RAB3323_00002","DRAB0402","Inflation addition",null,5481.9757438014021,6676.9316612611874,0]
["ED_RAB3323_00003","DRAB0403","Straight line depreciation",null,-9669.0508049421205,-11776.701406761977,0]
["ED_RAB3323_00004","DRAB0404","Regulatory depreciation",null,{"$f":"SUM(E41+E40)","v":-4187.0750611407184},{"$f":"SUM(F41+F40)","v":-5099.7697455007892},0]
["ED_RAB3323_00005","DRAB0405","Actual additions (recognised in RAB)",null,28926.804096371641,35232.241650932898,0]
["ED_RAB3323_00006","DRAB0406","Disposals ",null,0,0,0]
["ED_RAB3323_00007","DRAB0407","Closing value for distribution substations and transformers asset value",null,{"$f":"SUM(E39+E40+E41+E43+E44)","v":278405.69754386001},{"$f":"SUM(F39+F40+F41+F43+F44)","v":339092.30968560948},0]
[null,null,"For overhead network assets 33kV and above:"]
["ED_RAB3324_00001","DRAB0501","Opening value",null,176446.08822092865,214907.64060386972,0]
["ED_RAB3324_00002","DRAB0502","Inflation addition",null,3813.1767591949128,4644.3694433056216,0]
["ED_RAB3324_00003","DRAB0503","Straight line depreciation",null,-6725.6408156438301,-8191.6896759384235,0]
["ED_RAB3324_00004","DRAB0504","Regulatory depreciation",null,{"$f":"SUM(E49+E48)","v":-2912.4640564489173},{"$f":"SUM(F49+F48)","v":-3547.3202326328019},0]
["ED_RAB3324_00005","DRAB0505","Actual additions (recognised in RAB)",null,20121.03341077179,24506.997352110753,0]
["ED_RAB3324_00006","DRAB0506","Disposals ",null,0,0,0]
["ED_RAB3324_00007","DRAB0507","Closing value for overhead asset 33kV and above value",null,{"$f":"SUM(E47+E48+E49+E51+E52)","v":193654.65757525151},{"$f":"SUM(F47+F48+F49+F51+F52)","v":235867.31772334766},0]
[null,null,"For underground network assets 33kV and above:"]
["ED_RAB3325_00001","DRAB0601","Opening value",null,4747.1386486034999,5781.9154670826701,0]
["ED_RAB3325_00002","DRAB0602","Inflation addition",null,102.59042266137206,124.9529865184857,0]
["ED_RAB3325_00003","DRAB0603","Straight line depreciation",null,-180.94790184632154,-220.39075532988258,0]
["ED_RAB3325_00004","DRAB0604","Regulatory depreciation",null,{"$f":"SUM(E57+E56)","v":-78.357479184949483},{"$f":"SUM(F57+F56)","v":-95.437768811396879},0]
["ED_RAB3325_00005","DRAB0605","Actual additions (recognised in RAB)",null,541.34005642856494,659.34085286017387,0]
["ED_RAB3325_00006","DRAB0606","Disposals ",null,0,0,0]
["ED_RAB3325_00007","DRAB0607","Closing value for underground asset 33kV and above value",null,{"$f":"SUM(E55+E56+E57+E59+E60)","v":5210.1212258471151},{"$f":"SUM(F55+F56+F57+F59+F60)","v":6345.8185511314477},0]
[null,null,"Zone substations and transformers"]
["ED_RAB3326_00001","DRAB0701","Opening value",null,134374.78650676645,163665.67610532374,0]
["ED_RAB3326_00002","DRAB0702","Inflation addition",null,2903.9737751953394,3536.9792478557115,0]
["ED_RAB3326_00003","DRAB0703","Straight line depreciation",null,-5121.9982139345484,-6238.4865679518389,0]
["ED_RAB3326_00004","DRAB0704","Regulatory depreciation",null,{"$f":"SUM(E65+E64)","v":-2218.024438739209},{"$f":"SUM(F65+F64)","v":-2701.5073200961274},0]
["ED_RAB3326_00005","DRAB0705","Actual additions (recognised in RAB)",null,15323.431627923592,18663.618844235556,0]
["ED_RAB3326_00006","DRAB0706","Disposals ",null,0,0,0]
["ED_RAB3326_00007","DRAB0707","Closing value for zone substations and transformers",null,{"$f":"SUM(E63+E64+E65+E67+E68)","v":147480.19369595085},{"$f":"SUM(F63+F64+F65+F67+F68)","v":179627.78762946319},0]
[null,null,"For easements:"]
["ED_RAB3327_00001","DRAB0801","Opening value"]
["ED_RAB3327_00002","DRAB0802","Inflation addition"]
["ED_RAB3327_00003","DRAB0805","Actual additions (recognised in RAB)"]
["ED_RAB3327_00004","DRAB0806","Disposals "]
["ED_RAB3327_00005","DRAB0807","Closing value for easements asset value",null,{"$f":"SUM(E71+E72+E73+E74)","v":0},{"$f":"SUM(F71+F72+F73+F74)","v":0},{"$f":"SUM(G71+G72+G73+G74)","v":0}]
[null,null,"For meters:"]
["ED_RAB3328_00001","DRAB0901","Opening value",null,0,38892.209460268103,0]
["ED_RAB3328_00002","DRAB0902","Inflation addition",null,0,840.4996150549083,0]
["ED_RAB3328_00003","DRAB0903","Straight line depreciation",null,0,-13789.0869367091,0]
["ED_RAB3328_00004","DRAB0904","Regulatory depreciation",null,{"$f":"SUM(E79+E78)","v":0},{"$f":"SUM(F79+F78)","v":-12948.587321654191},0]
["ED_RAB3328_00005","DRAB0905","Actual additions (recognised in RAB)",null,0,0,0]
["ED_RAB3328_00006","DRAB0906","Disposals ",null,0,0,0]
["ED_RAB3328_00007","DRAB0907","Closing value for meters asset value",null,{"$f":"SUM(E77+E78+E79+E81+E82)","v":0},{"$f":"SUM(F77+F78+F79+F81+F82)","v":25943.622138613908},0]
[null,null,"For “other” asset items with long lives:"]
["ED_RAB3329_00001","DRAB1001","Opening value",null,154464.14969453748,169364.89146678546,18147.508000000002]
["ED_RAB3329_00002","DRAB1002","Inflation addition",null,3338.1250425145558,3660.1450022291478,0]
["ED_RAB3329_00003","DRAB1003","Straight line depreciation",null,-20441.663404961273,-21926.936734887251,-1112.4480000000001]
["ED_RAB3329_00004","DRAB1004","Regulatory depreciation",null,{"$f":"SUM(E87+E86)","v":-17103.538362446718},{"$f":"SUM(F87+F86)","v":-18266.791732658105},-1112.4480000000001]
["ED_RAB3329_00005","DRAB1005","Actual additions (recognised in RAB)",null,33293.057566071009,33293.057566071009,4157.7470000000003]
["ED_RAB3329_00006","DRAB1006","Disposals ",null,-1474.1047100000003,-1474.1047100000003,0]
["ED_RAB3329_00007","DRAB1007","Closing value for “other” asset (long life) value",null,{"$f":"SUM(E85+E86+E87+E89+E90)","v":169179.56418816178},{"$f":"SUM(F85+F86+F87+F89+F90)","v":182917.05259019835},21192.807000000001]
[null,null,"For “other” asset items with short lives:"]
["ED_RAB33210_00001","DRAB1101","Opening value",null,68910.445617146688,68910.445617146688,0]
["ED_RAB33210_00002","DRAB1102","Inflation addition",null,1489.2237756161339,1489.2237756161339,0]
["ED_RAB33210_00003","DRAB1103","Straight line depreciation",null,-21878.213983610825,-21878.213983610825,0]
["ED_RAB33210_00004","DRAB1104","Regulatory depreciation",null,{"$f":"SUM(E95+E94)","v":-20388.990207994691},{"$f":"SUM(F95+F94)","v":-20388.990207994691},0]
["ED_RAB33210_00005","DRAB1105","Actual additions (recognised in RAB)",null,20515.290946504421,20515.290946504421,0]
["ED_RAB33210_00006","DRAB1106","Disposals ",null,0,0,0]
["ED_RAB33210_00007","DRAB1107","Closing value for “other” asset (short life) value",null,{"$f":"SUM(E93+E94+E95+E97+E98)","v":69036.746355656418},{"$f":"SUM(F93+F94+F95+F97+F98)","v":69036.746355656418},0]
[]
[null,null,"TABLE 3.3.3 - TOTAL DISAGGREGATED RAB ASSET VALUES"]
["ED_RAB333_00001","DRAB1201","Overhead distribution assets (wires and poles)",null,1082579.2318186071,1318558.834727915,0]
["ED_RAB333_00002","DRAB1202","Underground distribution assets (cables, ducts etc)",null,551360.70967628446,671545.79867954785,0]
["ED_RAB333_00003","DRAB1203","Distribution substations including transformers",null,266035.83302624454,324026.07373289345,0]
["ED_RAB333_00004","DRAB1204","Overhead assets 33kV and above (wires and towers / poles etc)",null,185050.37289809008,225387.47916360869,0]
["ED_RAB333_00005","DRAB1205","Underground assets 33kV and above (cables, ducts etc)",null,4978.629937225307,6063.8670091070589,0]
["ED_RAB333_00006","DRAB1206","Zone substations",null,140927.49010135865,171646.73186739348,0]
["ED_RAB333_00007","DRAB1207","Easements ",null,0,0]
["ED_RAB333_00008","DRAB1208","Meters",null,0,32417.915799441005,0]
["ED_RAB333_00009","DRAB1209","Other assets with long lives (please specify)",null,161821.85694134963,176140.9720284919,19670.156999999999]
["ED_RAB333_00010","DRAB1210","Other assets with short lives (please specify)",null,68973.595986401546,68973.595986401546,0]
[]
[null,null,"Capital Contributions"]
["ED_RAB333_00011","DRAB13","Value of Capital Contributions or Contributed Assets ",null,0,0,0]
[]
[null,null,"TABLE 3.3.4 - ASSET LIVES",null,"Service Life (Years)"]
[null,null,"Table 3.3.4.1 Asset Lives – estimated service life of new assets",null,{"$f":"CRY","v":2014},{"$f":"CRY","v":2014},2014]
["ED_RAB3341_00001","DRAB1401","Overhead network assets less than 33kV (wires and poles)",null,50.9,50.9,0]
["ED_RAB3341_00002","DRAB1402","Underground network assets less than 33kV (cables)",null,50.9,50.9,0]
["ED_RAB3341_00003","DRAB1403","Distribution substations including transformers",null,50.9,50.9,0]
["ED_RAB3341_00004","DRAB1404","Overhead network assets 33kV and above (wires and towers / poles etc) ",null,50.9,50.9,0]
["ED_RAB3341_00005","DRAB1405","Underground network assets 33kV and above(cables, ducts etc)",null,50.9,50.9,0]
["ED_RAB3341_00006","DRAB1406","Zone substations and transformers",null,50.9,50.9,0]
["ED_RAB3341_00007","DRAB1407","Meters",null,0,0,0]
["ED_RAB3341_00008","DRAB1408","“Other” assets with long lives",null,14.9,14.9,23]
["ED_RAB3341_00009","DRAB1409","“Other” assets with short lives",null,6,6,0]
[]
[null,null,"Table 3.3.4.2 Asset Lives – estimated residual service life"]
["ED_RAB3342_00001","DRAB1501","Overhead network assets less than 33kV (wires and poles)",null,26.928055807736932,26.928055807736932,0]
["ED_RAB3342_00002","DRAB1502","Underground network assets less than 33kV (cables)",null,26.928055807736932,26.928055807736932,0]
["ED_RAB3342_00003","DRAB1503","Distribution substations including transformers",null,26.928055807736932,26.928055807736932,0]
["ED_RAB3342_00004","DRAB1504","Overhead network assets 33kV and above (wires and towers / poles etc) ",null,26.928055807736932,26.928055807736932,0]
["ED_RAB3342_00005","DRAB1505","Underground network assets 33kV and above (cables, ducts etc)",null,26.928055807736932,26.928055807736932,0]
["ED_RAB3342_00006","DRAB1506","Zone substations and transformers",null,26.928055807736932,26.928055807736932,0]
["ED_RAB3342_00007","DRAB1507","Meters",null,2.8770296856893904,2.8770296856893904,0]
["ED_RAB3342_00008","DRAB1508","“Other” assets with long lives",null,7.4817162304772964,7.7331305221806561,16.312999999999999]
["ED_RAB3342_00009","DRAB1509","“Other” assets with short lives",null,3.2128498479745047,3.2128498479745047,0]

{"sheet":"3.4 Operational data","index":6,"n_rows":130,"n_cols":5,"rows_kept":130,"cut":false,"hidden":false,"merged":[]}
[null,null,"REGULATORY REPORTING STATEMENT"]
[null,null,{"$f":"TradingName","v":"Powercor Australia Ltd"}]
[null,null,{"$f":"CONCATENATE(\"Benchmarking RIN response \",CRY)","v":"Benchmarking RIN response 2014"}]
[null,null,"3.4 OPERATIONAL DATA"]
[]
[]
[null,null,null,null,"Standard control services"]
[null,null,null,null,"Actual"]
[null,null,null,null,{"$f":"CRY","v":2014}]
[null,null,null,"Unit"]
[null,null,"TABLE 3.4.1 - ENERGY DELIVERY"]
["ED_OPD3410_00001","DOPED01","Total energy delivered","GWh",10332.961914579491]
[]
[]
[null,null,"Table 3.4.1.1 Energy grouping - delivery by chargeable quantity"]
["ED_OPD3411_00001","DOPED0201","Energy Delivery where time of use is not a determinant","GWh",2319.4896547619055]
["ED_OPD3411_00002","DOPED0202","Energy Delivery at On-peak times","GWh",4057.7558259940865]
["ED_OPD3411_00003","DOPED0203","Energy Delivery at Shoulder times ","GWh",4.0201822559762421]
["ED_OPD3411_00004","DOPED0204","Energy Delivery at Off-peak times","GWh",3465.2256994107147]
["ED_OPD3411_00005","DOPED0205","Controlled load energy deliveries","GWh",381.83721104040808]
["ED_OPD3411_00005","DOPED0206","Energy Delivery to unmetered supplies","GWh",104.63291646639588]
[]
[null,null,"Table 3.4.1.2 Energy - received from TNSP and other DNSPs by time of receipt"]
["ED_OPD3412_00001","DOPED0301","Energy into DNSP network  at On-peak times","GWh",5423.14]
["ED_OPD3412_00002","DOPED0302","Energy into DNSP network  at Shoulder times ","GWh",0]
["ED_OPD3412_00003","DOPED0303","Energy into DNSP network  at Off-peak times","GWh",4966.0600000000004]
["ED_OPD3412_00004","DOPED0304","Energy received from TNSP and other DNSPs not included in the above categories","GWh",8.6936282730000087]
[]
[null,null,"Table 3.4.1.3 Energy - received into DNSP system from embedded generation by time of receipt"]
["ED_OPD3413_00001","DOPED0401","Energy into DNSP network  at On-peak times from non-residential embedded generation","GWh",296.69444319500099]
["ED_OPD3413_00002","DOPED0402","Energy into DNSP network  at Shoulder times from non-residential embedded generation","GWh",0]
["ED_OPD3413_00003","DOPED0403","Energy into DNSP network  at Off-peak times from non-residential embedded generation","GWh",294.82186754700098]
["ED_OPD3413_00004","DOPED0404","Energy received from embedded generation not included in above categories from non-residential embedded generation","GWh",0]
["ED_OPD3413_00005","DOPED0405","Energy into DNSP network  at On-peak times from residential embedded generation","GWh",52.968445226148205]
["ED_OPD3413_00006","DOPED0406","Energy into DNSP network  at Shoulder times from residential embedded generation","GWh",0]
["ED_OPD3413_00007","DOPED0407","Energy into DNSP network  at Off-peak times from residential embedded generation","GWh",21.561489541045699]
["ED_OPD3413_00008","DOPED0408","Energy received from embedded generation not included in above categories from residential embedded generation","GWh",0]
[]
[null,null,"Table 3.4.1.4 Energy grouping  - customer type or class"]
["ED_OPD3414_00001","DOPED0501","Residential customers energy deliveries","GWh",3298.1288633581962]
["ED_OPD3414_00002","DOPED0502","Non residential customers not on demand tariffs energy deliveries","GWh",2089.6495616184861]
["ED_OPD3414_00003","DOPED0503","Non-residential low voltage demand tariff customers energy deliveries","GWh",2287.5857611483989]
["ED_OPD3414_00004","DOPED0504","Non-residential high voltage demand tariff customers energy deliveries","GWh",2657.597728454411]
["ED_OPD3414_00005","DOPED0505","Other Customer Class Energy Deliveries","GWh",0]
[]
[null,null,"TABLE 3.4.2 -  CUSTOMER NUMBERS"]
[null,null,"Table 3.4.2.1 Distribution customer numbers by customer type or class"]
["ED_OPD3421_00001","DOPCN0101","Residential customer numbers","number",658280.19425043033]
["ED_OPD3421_00002","DOPCN0102","Non residential customers not on demand tariff customer numbers","number",97787.340312116474]
["ED_OPD3421_00003","DOPCN0103","Low voltage demand tariff customer numbers","number",2552.0733591294661]
["ED_OPD3421_00004","DOPCN0104","High voltage demand tariff customer numbers","number",180.52113913398446]
["ED_OPD3421_00005","DOPCN0105","Unmetered Customer Numbers","number",6440.6099415954059]
["ED_OPD3421_00006","DOPCN0106","Other Customer Numbers","number",0]
["ED_OPD3421_99999","DOPCN01","Total customer numbers","number",{"$f":"SUM(E48:E53)","v":765240.73900240555}]
[]
[null,null,"Table 3.4.2.2 Distribution customer numbers by location on the network"]
["ED_OPD3422_00001","DOPCN0201","Customers on CBD network","number",0]
["ED_OPD3422_00002","DOPCN0202","Customers on Urban network","number",303736.06246562698]
["ED_OPD3422_00003","DOPCN0203","Customers on Short rural network","number",287869.24981697567]
["ED_OPD3422_00004","DOPCN0204","Customers on Long rural network","number",173635.42671980304]
["ED_OPD3422_99999","DOPCN02","Total customer numbers","number",{"$f":"SUM(E57:E60)","v":765240.73900240567}]
[]
[null,null,"Table 3.4.2.3 Distribution customer numbers by Aurora Feeder categories (Aurora only)"]
["ED_OPD3423_00001",null,"Critical Infrastructure","number"]
["ED_OPD3423_00002",null,"High Density Commercial","number"]
["ED_OPD3423_00003",null,"Urban","number"]
["ED_OPD3423_00004",null,"High Density Rural","number"]
["ED_OPD3423_00005",null,"Low Density Rural","number"]
["ED_OPD3423_99999",null,"Total customer numbers","number",{"$f":"SUM(E64:E68)","v":0}]
[]
[null,null,"Table 3.4.2.4 Unmetered Supply (Aurora only)"]
["ED_OPD3424_00001","DOPCN0301","Number of unmetered connections reported in customer numbers in the economic benchmarking RIN","number"]
["ED_OPD3424_00002","DOPCN0302","Unmetered connections not reported in customer numbers in the economic benchmarking RIN","number"]
["ED_OPD3424_99999","DOPCN0303","Total unmetered connections","number"]
[]
[null,null,"TABLE 3.4.3 - SYSTEM DEMAND"]
[null,null,"Table 3.4.3.1 Annual system maximum demand characteristics at the zone substation level – MW measure"]
["ED_OPD3431_00001","DOPSD0101","Non-coincident Summated Raw System Annual Maximum Demand","MW ",2483.5300898450005]
["ED_OPD3431_00002","DOPSD0102","Non–coincident Summated Weather Adjusted System Annual Maximum Demand 10% POE","MW ",2569.7550000000006]
["ED_OPD3431_00003","DOPSD0103","Non–coincident Summated Weather Adjusted System Annual Maximum Demand 50% POE","MW ",2359.5949999999998]
["ED_OPD3431_00004","DOPSD0104","Coincident Raw System Annual Maximum Demand","MW ",2223.3291900000004]
["ED_OPD3431_00005","DOPSD0105","Coincident Weather Adjusted System Annual Maximum Demand 10% POE","MW ",2300.5202658949993]
["ED_OPD3431_00006","DOPSD0106","Coincident Weather Adjusted System Annual Maximum Demand 50% POE","MW ",2112.3788519934815]
[]
[null,null,"Table 3.4.3.2 Annual system maximum demand characteristics at the transmission connection point  – MW measure"]
["ED_OPD3432_00001","DOPSD0107","Non-coincident Summated Raw System Annual Maximum Demand","MW ",2571.31]
["ED_OPD3432_00002","DOPSD0108","Non–coincident Summated Weather Adjusted System Annual Maximum Demand 10% POE","MW ",2660.8999999999996]
["ED_OPD3432_00003","DOPSD0109","Non–coincident Summated Weather Adjusted System Annual Maximum Demand 50% POE","MW ",2388.6]
["ED_OPD3432_00004","DOPSD0110","Coincident Raw System Annual Maximum Demand","MW ",2343.5048899999992]
["ED_OPD3432_00005","DOPSD0111","Coincident Weather Adjusted System Annual Maximum Demand 10% POE","MW ",2425.1576674150519]
["ED_OPD3432_00006","DOPSD0112","Coincident Weather Adjusted System Annual Maximum Demand 50% POE","MW ",2176.9820753833642]
[]
[null,null,"Table 3.4.3.3 Annual system maximum demand characteristics at the zone substation level – MVA measure"]
["ED_OPD3433_00001","DOPSD0201","Non–coincident Summated Raw System Annual Maximum Demand"," MVA",2541.6955400072748]
["ED_OPD3433_00002","DOPSD0202","Non–coincident Summated Weather Adjusted System Annual Maximum Demand 10% POE"," MVA",2628.6972602687215]
["ED_OPD3433_00003","DOPSD0203","Non–coincident Summated Weather Adjusted System Annual Maximum Demand 50% POE"," MVA",2411.2992612173521]
["ED_OPD3433_00004","DOPSD0204","Coincident Raw System Annual Maximum Demand"," MVA",2268.0725528890348]
["ED_OPD3433_00005","DOPSD0205","Coincident Weather Adjusted System Annual Maximum Demand 10% POE"," MVA",2345.7082140739112]
["ED_OPD3433_00006","DOPSD0206","Coincident Weather Adjusted System Annual Maximum Demand 50% POE"," MVA",2151.7139189507448]
[]
[null,null,"Table 3.4.3.4 Annual system maximum demand characteristics at the transmission connection point – MVA measure"]
["ED_OPD3434_00001","DOPSD0207","Non–coincident Summated Raw System Annual Maximum Demand"," MVA",2673.5512682606873]
["ED_OPD3434_00002","DOPSD0208","Non–coincident Summated Weather Adjusted System Annual Maximum Demand 10% POE"," MVA",2766.7035751095209]
["ED_OPD3434_00003","DOPSD0209","Non–coincident Summated Weather Adjusted System Annual Maximum Demand 50% POE"," MVA",2483.5762935497773]
["ED_OPD3434_00004","DOPSD0210","Coincident Raw System Annual Maximum Demand"," MVA",2451.5076399999994]
["ED_OPD3434_00005","DOPSD0211","Coincident Weather Adjusted System Annual Maximum Demand 10% POE"," MVA",2536.9234667449655]
["ED_OPD3434_00006","DOPSD0212","Coincident Weather Adjusted System Annual Maximum Demand 50% POE"," MVA",2277.3104561114756]
[]
[null,null,"Table 3.4.3.5 Power factor conversion between MVA and MW"]
["ED_OPD3435_00001","DOPSD0301","Average overall network power factor conversion between MVA and MW","Factor",0.95594000000000001]
["ED_OPD3435_00002","DOPSD0302","Average power factor conversion for  low voltage distribution lines","Factor",0.85]
["ED_OPD3435_00003","DOPSD0303","Average power factor conversion for 3.3 kV lines","Factor",0]
["ED_OPD3435_00004","DOPSD0304","Average power factor conversion for 6.6 kV lines","Factor",0]
["ED_OPD3435_00005","DOPSD0305","Average power factor conversion for 7.6 kV lines","Factor",0]
["ED_OPD3435_00006","DOPSD0306","Average power factor conversion for 11 kV lines","Factor",0.9]
["ED_OPD3435_00007","DOPSD0307","Average power factor conversion for SWER lines","Factor",0.9]
["ED_OPD3435_00008","DOPSD0308","Average power factor conversion for 22 kV lines","Factor",0.9]
["ED_OPD3435_00009","DOPSD0309","Average power factor conversion for 33 kV lines","Factor",0]
["ED_OPD3435_00010","DOPSD0310","Average power factor conversion for 44 kV lines","Factor",0]
["ED_OPD3435_00011","DOPSD0311","Average power factor conversion for 66 kV lines","Factor",0.95]
["ED_OPD3435_00012","DOPSD0312","Average power factor conversion for 110 kV lines","Factor",0]
["ED_OPD3435_00013","DOPSD0313","Average power factor conversion for 132 kV lines","Factor",0]
["ED_OPD3435_00013","DOPSD0314","Average power factor conversion for 220 kV lines","Factor",0]
[]
[null,null,"Table 3.4.3.6 Demand supplied (for customers charged on this basis) – MW measure"]
["ED_OPD3436_00001","DOPSD0401","Summated Chargeable Contracted Maximum Demand","MW ",1681.1754830000002]
["ED_OPD3436_00002","DOPSD0402","Summated Chargeable Measured Maximum Demand ","MW ",0]
[null,null,"Table 3.4.3.7 Demand supplied (for customers charged on this basis) – MVA measure"]
["ED_OPD3437_00001","DOPSD0403","Summated Chargeable Contracted Maximum Demand"," MVA",0]
["ED_OPD3437_00002","DOPSD0404","Summated Chargeable Measured Maximum Demand "," MVA",0]

{"sheet":"3.5 Physical assets","index":7,"n_rows":95,"n_cols":5,"rows_kept":95,"cut":false,"hidden":false,"merged":[]}
[null,null,"REGULATORY REPORTING STATEMENT"]
[null,null,{"$f":"TradingName","v":"Powercor Australia Ltd"}]
[null,null,{"$f":"CONCATENATE(\"Benchmarking RIN response \",CRY)","v":"Benchmarking RIN response 2014"}]
[null,null,"3.5 PHYSICAL ASSETS"]
[]
[]
[]
[null,null,null,null,"Actual"]
[null,null,null,null,{"$f":"CRY","v":2014}]
[null,null,null,"Unit"]
[null,null,"TABLE 3.5.1 - NETWORK CAPACITIES"]
[null,null,"Circuit length"]
[null,null,"Table 3.5.1.1 Overhead network length of circuit at each voltage"]
["ED_PHA3511_00001","DPA0101","Overhead low voltage distribution","km",9664.1974100000007]
["ED_PHA3511_00002","DPA0102","Overhead 2.2 kV","km",0]
["ED_PHA3511_00003","DPA0103","Overhead 6.6kv","km",0]
["ED_PHA3511_00004","DPA0104","Overhead 7.6 kV","km",0]
["ED_PHA3511_00005","DPA0105","Overhead 11 kV","km",53.297530000000002]
["ED_PHA3511_00006","DPA0106","Overhead SWER","km",21631.906640000001]
["ED_PHA3511_00007","DPA0107","Overhead 22 kV","km",34489.00963]
["ED_PHA3511_00008","DPA0108","Overhead 33 kV","km",0]
["ED_PHA3511_00009","DPA0109","Overhead 44 kV","km",0]
["ED_PHA3511_00010","DPA0110","Overhead 66 kV","km",3094.6215799999982]
["ED_PHA3511_00011","DPA0111","Overhead 110kV","km",0]
["ED_PHA3511_00012","DPA0112","Overhead 132 kV","km",0]
["ED_PHA3511_00013","DPA0113","Overhead 220kV","km",0]
["ED_PHA3511_00014","DPA0114","Other ","km",0]
[null,"DPA01","Total overhead circuit km","km",{"$f":"SUM(E14:E27)","v":68933.032789999997}]
[]
[null,null,"Table 3.5.1.2 Underground network circuit length at each voltage"]
["ED_PHA3512_00001","DPA0201","Underground low voltage distribution","km",3621.4876400000003]
["ED_PHA3512_00002","DPA0202","Underground 5 kV","km",0]
["ED_PHA3512_00003","DPA0203","Underground 6.6 Kv","km",0]
["ED_PHA3512_00004","DPA0204","Underground 7.6 kV","km",0]
["ED_PHA3512_00005","DPA0205","Underground 11 kV","km",16.656874999999999]
["ED_PHA3512_00006","DPA0206","Underground SWER","km",74.925449999999998]
["ED_PHA3512_00007","DPA0207","Underground 22 kV","km",1531.754134]
["ED_PHA3512_00008","DPA0208","Underground 33 kV","km",0]
["ED_PHA3512_00010","DPA0209","Underground 66 kV","km",3.5822500000000002]
["ED_PHA3512_00009","DPA0210","Underground 110 kV","km",0]
["ED_PHA3512_00010","DPA0211","Underground 132 kV","km",0]
["ED_PHA3512_00011","DPA0212","Other ","km",0]
[null,"DPA02","Total underground circuit km","km",{"$f":"SUM(E31:E42)","v":5248.4063490000008}]
[]
[null,null,"Circuit Capacity MVA"]
[null,null,"Table 3.5.1.3 Estimated overhead network weighted average MVA capacity by voltage class"]
["ED_PHA3513_00001","DPA0301","Overhead low voltage distribution","MVA",0.2]
["ED_PHA3513_00002","DPA0302","Overhead 6.6 kV","MVA",0]
["ED_PHA3513_00003","DPA0303","Overhead 7.6 kV","MVA",0]
["ED_PHA3513_00004","DPA0304","Overhead 11 kV","MVA",4]
["ED_PHA3513_00005","DPA0305","Overhead SWER","MVA",0.08]
["ED_PHA3513_00006","DPA0306","Overhead 22 kV","MVA",8]
["ED_PHA3513_00007","DPA0307","Overhead 33 kV","MVA",0]
["ED_PHA3513_00008","DPA0308","Overhead 44 kV","MVA",0]
["ED_PHA3513_00009","DPA0309","Overhead 66 kV","MVA",50]
["ED_PHA3513_00010","DPA0310","Overhead 110 kV","MVA",0]
["ED_PHA3513_00011","DPA0311","Overhead 132 kV","MVA",0]
["ED_PHA3513_00012","DPA0312","Overhead 220 kV","MVA",0]
["ED_PHA3513_00013","DPA0313","Other ","MVA",0]
[]
[null,null,"Table 3.5.1.4 Estimated underground network weighted average MVA capacity by voltage class"]
["ED_PHA3514_00001","DPA0401","Underground low voltage distribution","MVA",0.2]
["ED_PHA3514_00002","DPA0402","Underground 5 kV","MVA",0]
["ED_PHA3514_00003","DPA0403","Underground 6.6 kV","MVA",0]
["ED_PHA3514_00004","DPA0404","Underground 7.6 kV","MVA",0]
["ED_PHA3514_00005","DPA0405","Underground 11 kV","MVA",4]
["ED_PHA3514_00006","DPA0406","Underground SWER","MVA",0.08]
["ED_PHA3514_00007","DPA0407","Underground 12.7 kV","MVA",0]
["ED_PHA3514_00008","DPA0408","Underground 22 kV","MVA",8]
["ED_PHA3514_00009","DPA0409","Underground 33 kV","MVA",0]
["ED_PHA3514_00010","DPA0410","Underground 66 kV","MVA",60]
["ED_PHA3514_00010","DPA0411","Underground 110 kV","MVA",0]
["ED_PHA3514_00011","DPA0412","Underground 132 kV","MVA",0]
["ED_PHA3514_00012","DPA0413","Other","MVA",0]
[]
[null,null,"TABLE 3.5.2 - TRANSFORMER CAPACITIES"]
[null,null,"Table 3.5.2.1 Distribution transformer total installed capacity"]
["ED_PHA3521_00001","DPA0501","Distribution transformer capacity owned by utility","MVA",6757.59]
["ED_PHA3521_00002","DPA0502","Distribution transformer capacity owned by High Voltage Customers","MVA",389.2]
["ED_PHA3521_00003","DPA0503","Cold spare capacity included in DPA0501","MVA",65.900000000000006]
[]
[null,null,"Table 3.5.2.2 Zone substation transformer capacity"]
["ED_PHA3522_00001","DPA0601","Total installed capacity for first step transformation where there are two steps to reach distribution voltage","MVA",0]
["ED_PHA3522_00002","DPA0602","Total installed capacity for second step transformation where there are two steps to reach distribution voltage","MVA",0]
["ED_PHA3522_00003","DPA0603","Total zone substation transformer capacity where there is only a single step transformation to reach distribution voltage","MVA",3270]
["ED_PHA3522_00004","DPA0604","Total zone substation transformer  capacity ","MVA",3349]
["ED_PHA3522_00005","DPA0605","Cold spare capacity of zone substation transformers included in DPA0604","MVA",79]
[]
[null,null,"Table 3.5.2.3 Distribution - other transformer capacity"]
["ED_PHA3523_00001",null,"Distribution other - transformer capacity owned by utility ","MVA",0]
[]
[null,null,"TABLE 3.5.3 - PUBLIC LIGHTING"]
["ED_PHA353_00001","DPA0701","Public lighting luminaires","Number",159229]
["ED_PHA353_00002","DPA0702","Public lighting poles","Number",73685]
["ED_PHA353_00003","DPA0703","Public lighting columns ","Number",0]

{"sheet":"3.6 Quality of service","index":8,"n_rows":32,"n_cols":5,"rows_kept":32,"cut":false,"hidden":false,"merged":[]}
[null,null,"REGULATORY REPORTING STATEMENT"]
[null,null,{"$f":"TradingName","v":"Powercor Australia Ltd"}]
[null,null,{"$f":"CONCATENATE(\"Benchmarking RIN response \",CRY)","v":"Benchmarking RIN response 2014"}]
[null,null,"3.6 QUALITY OF SERVICE DATA"]
[]
[]
[]
[null,null,null,null,"Actual"]
[null,null,null,null,{"$f":"CRY","v":2014}]
[null,null,null,"Unit"]
[null,null,"TABLE 3.6.1 - RELIABILITY"]
[null,null,"Table 3.6.1.1 Inclusive of MEDs"]
["ED_QOS3611_00001","DQS0101","Whole of network unplanned SAIDI","minutes/customer",197.45312779072123]
["ED_QOS3611_00002","DQS0102","Whole of network unplanned SAIDI excluding excluded outages","minutes/customer",195.90378155540827]
["ED_QOS3611_00003","DQS0103","Whole of network unplanned SAIFI","interruptions/customer",1.7736596930884709]
["ED_QOS3611_00004","DQS0104","Whole of network unplanned SAIFI excluding excluded outages","interruptions/customer",1.748206331125232]
[null,null,"Table 3.6.1.2 Exclusive of MEDs"]
["ED_QOS3612_00001","DQS0105","Whole of network unplanned SAIDI","minutes/customer",167.77635598456314]
["ED_QOS3612_00002","DQS0106","Whole of network unplanned SAIDI excluding excluded outages","minutes/customer",166.22700974925019]
["ED_QOS3612_00003","DQS0107","Whole of network unplanned SAIFI","interruptions/customer",1.6262897679839863]
["ED_QOS3612_00004","DQS0108","Whole of network unplanned SAIFI excluding excluded outages","interruptions/customer",1.6008364060207474]
[]
[null,null,"TABLE 3.6.2 - ENERGY NOT SUPPLIED"]
["ED_QOS362_00001","DQS0201","Energy Not Supplied (planned)","GWh",1.023584]
["ED_QOS362_00002","DQS0202","Energy Not Supplied (unplanned)","GWh",3.2010226698122399]
[null,"DQS02","Total","GWh",{"$f":"SUM(E24:E25)","v":4.22460666981224}]
[]
[null,null,"TABLE 3.6.3 - SYSTEM LOSSES"]
["ED_QOS363_00001","DQS03","System losses","%",6.5559999999999993E-2]
[]
[null,null,"TABLE 3.6.4 - CAPACITY UTILISATION"]
["ED_QOS364_00001","DQS04","Overall utilisation","%",0.75894163631151834]

{"sheet":"3.7 Operating environment","index":9,"n_rows":33,"n_cols":5,"rows_kept":33,"cut":false,"hidden":false,"merged":[]}
[null,null,"REGULATORY REPORTING STATEMENT"]
[null,null,{"$f":"TradingName","v":"Powercor Australia Ltd"}]
[null,null,{"$f":"CONCATENATE(\"Benchmarking RIN response \",CRY)","v":"Benchmarking RIN response 2014"}]
[null,null,"3.7 OPERATING ENVIRONMENT FACTORS"]
[]
[]
[]
[null,null,null,null,"Actual"]
[null,null,null,null,{"$f":"CRY","v":2014}]
[]
[null,null,"TABLE 3.7.1 - DENSITY FACTORS"]
["ED_OEF371_00001","DOEF0101","Customer density","Customer / km",11.420484732710504]
["ED_OEF371_00002","DOEF0102","Energy density","MWh/customer",13.502885901304294]
["ED_OEF371_00003","DOEF0103","Demand density","kVA / customer",3.3214314706086059]
[]
[null,null,"TABLE 3.7.2 - TERRAIN FACTORS"]
["ED_OEF372_00001","DOEF0201","Rural proportion","%",0.92]
["ED_OEF372_00002","DOEF0202","Urban and CBD vegetation maintenance spans","Number of spans",4415]
["ED_OEF372_00003","DOEF0203","Rural vegetation maintenance spans","Number of spans",41590]
["ED_OEF372_00004","DOEF0204","Total vegetation maintenance spans","Number of spans",46005]
["ED_OEF372_00005","DOEF0205","Total number of spans","Number of spans",550584]
["ED_OEF372_00006","DOEF0206","Average urban and CBD vegetation maintenance span cycle","Years",1.85]
["ED_OEF372_00007","DOEF0207","Average rural vegetation maintenance span cycle","Years",1.92]
["ED_OEF372_00008","DOEF0208","Average number of trees per urban and CBD vegetation maintenance span","Trees",2.0790000000000002]
["ED_OEF372_00009","DOEF0209","Average number of trees per rural vegetation maintenance span","Trees",5.5579999999999998]
["ED_OEF372_00010","DOEF0210","Average number of defects per urban and CBD vegetation maintenance span","Defects",1.31]
["ED_OEF372_00011","DOEF0211","Average number of defects per rural vegetation maintenance span","Defects",2.99]
["ED_OEF372_00012","DOEF0212","Tropical proportion","Spans",0]
["ED_OEF372_00013","DOEF0213","Standard vehicle access","km",4402]
["ED_OEF372_00014","DOEF0214","Bushfire risk","Spans",280469]
[]
[null,null,"TABLE 3.7.3 - SERVICE AREA FACTORS"]
["ED_OEF373_00001","DOEF0301","Route Line length","km",67006]

{"sheet":"3.7.4 Weather stations","index":10,"n_rows":1100,"n_cols":6,"rows_kept":1100,"cut":false,"hidden":false,"merged":[]}
[null,null,"REGULATORY REPORTING STATEMENT"]
[null,null,{"$f":"TradingName","v":"Powercor Australia Ltd"}]
[null,null,{"$f":"CONCATENATE(\"Benchmarking RIN response \",CRY)","v":"Benchmarking RIN response 2014"}]
[null,null,"3.7 OPERATING ENVIRONMENT FACTORS"]
[]
[]
[null,null,"TABLE 3.7.4  - WEATHER STATIONS"]
[]
[null,null,"Weather Station ID","Post code","Suburb","Materiality"]
["ED_OEF374_00001",null,76031,3500,"MILDURA","Yes"]
["ED_OEF374_00002",null,76064,3507,"WALEUP","Yes"]
["ED_OEF374_00003",null,77010,3396,"HOPETOUN","Yes"]
["ED_OEF374_00004",null,77094,3585,"SWAN HILL","Yes"]
["ED_OEF374_00005",null,78015,3418,"NHILL","Yes"]
["ED_OEF374_00006",null,79028,3401,"LONGERENONG","Yes"]
["ED_OEF374_00007",null,79097,3401,"KANAGULK","Yes"]
["ED_OEF374_00008",null,79099,3318,"EDENHOPE","Yes"]
["ED_OEF374_00009",null,79100,3400,"HORSHAM","Yes"]
["ED_OEF374_00010",null,79101,3377,"WARRAK","Yes"]
["ED_OEF374_00011",null,79103,3381,"HALLS GAP","Yes"]
["ED_OEF374_00012",null,79105,3380,"SYAWELL","Yes"]
["ED_OEF374_00013",null,80091,3620,"KYABRAM","Yes"]
["ED_OEF374_00014",null,80128,3525,"CHARLTON","Yes"]
["ED_OEF374_00015",null,81049,3616,"TATURA","Yes"]
["ED_OEF374_00016",null,81123,3550,"BENDIGO","Yes"]
["ED_OEF374_00017",null,81124,3730,"YARRAWONGA","Yes"]
["ED_OEF374_00018",null,81125,3631,"KIALLA","Yes"]
["ED_OEF374_00019",null,87031,3030,"POINT COOK","Yes"]
["ED_OEF374_00020",null,87113,3212,"AVALON","Yes"]
["ED_OEF374_00021",null,87168,3331,"SHEOAKS","Yes"]
["ED_OEF374_00022",null,87184,3219,"THOMSON","Yes"]
["ED_OEF374_00023",null,88051,3444,"REDESDALE","Yes"]
["ED_OEF374_00024",null,89002,3355,"WENDOUREE","Yes"]
["ED_OEF374_00025",null,89112,3351,"WESTMERE","Yes"]
["ED_OEF374_00026",null,90015,3233,"CAPE OTWAY","Yes"]
["ED_OEF374_00027",null,90035,3242,"BIRREGURRA","Yes"]
["ED_OEF374_00028",null,90171,3306,"BRIDGEWATER","Yes"]
["ED_OEF374_00029",null,90173,3300,"HENSLEY PARK","Yes"]
["ED_OEF374_00030",null,90175,3284,"PORT FAIRY","Yes"]
["ED_OEF374_00031",null,90176,3272,"MORTLAKE","Yes"]
["ED_OEF374_00032",null,90180,3231,"FAIRHAVEN","Yes"]
["ED_OEF374_00033",null,90182,3311,"CASTERTON","Yes"]
["ED_OEF374_00034",null,90184,3305,"PORTLAND","Yes"]
["ED_OEF374_00035",null,90186,3275,"MAILORS FLAT","Yes"]
["ED_OEF374_00036",null,90194,3304,"DARTMOOR","Yes"]
["ED_OEF374_00037"]
["ED_OEF374_00038"]
["ED_OEF374_00039"]
["ED_OEF374_00040"]
["ED_OEF374_00041"]
["ED_OEF374_00042"]
["ED_OEF374_00043"]
["ED_OEF374_00044"]
["ED_OEF374_00045"]
["ED_OEF374_00046"]
["ED_OEF374_00047"]
["ED_OEF374_00048"]
["ED_OEF374_00049"]
["ED_OEF374_00050"]
["ED_OEF374_00051"]
["ED_OEF374_00052"]
["ED_OEF374_00053"]
["ED_OEF374_00054"]
["ED_OEF374_00055"]
["ED_OEF374_00056"]
["ED_OEF374_00057"]
["ED_OEF374_00058"]
["ED_OEF374_00059"]
["ED_OEF374_00060"]
["ED_OEF374_00061"]
["ED_OEF374_00062"]
["ED_OEF374_00063"]
["ED_OEF374_00064"]
["ED_OEF374_00065"]
["ED_OEF374_00066"]
["ED_OEF374_00067"]
["ED_OEF374_00068"]
["ED_OEF374_00069"]
["ED_OEF374_00070"]
["ED_OEF374_00071"]
["ED_OEF374_00072"]
["ED_OEF374_00073"]
["ED_OEF374_00074"]
["ED_OEF374_00075"]
["ED_OEF374_00076"]
["ED_OEF374_00077"]
["ED_OEF374_00078"]
["ED_OEF374_00079"]
["ED_OEF374_00080"]
["ED_OEF374_00081"]
["ED_OEF374_00082"]
["ED_OEF374_00083"]
["ED_OEF374_00084"]
["ED_OEF374_00085"]
["ED_OEF374_00086"]
["ED_OEF374_00087"]
["ED_OEF374_00088"]
["ED_OEF374_00089"]
["ED_OEF374_00090"]
["ED_OEF374_00091"]
["ED_OEF374_00092"]
["ED_OEF374_00093"]
["ED_OEF374_00094"]
["ED_OEF374_00095"]
["ED_OEF374_00096"]
["ED_OEF374_00097"]
["ED_OEF374_00098"]
["ED_OEF374_00099"]
["ED_OEF374_00100"]
["ED_OEF374_00101"]
["ED_OEF374_00102"]
["ED_OEF374_00103"]
["ED_OEF374_00104"]
["ED_OEF374_00105"]
["ED_OEF374_00106"]
["ED_OEF374_00107"]
["ED_OEF374_00108"]
["ED_OEF374_00109"]
["ED_OEF374_00110"]
["ED_OEF374_00111"]
["ED_OEF374_00112"]
["ED_OEF374_00113"]
["ED_OEF374_00114"]
["ED_OEF374_00115"]
["ED_OEF374_00116"]
["ED_OEF374_00117"]
["ED_OEF374_00118"]
["ED_OEF374_00119"]
["ED_OEF374_00120"]
["ED_OEF374_00121"]
["ED_OEF374_00122"]
["ED_OEF374_00123"]
["ED_OEF374_00124"]
["ED_OEF374_00125"]
["ED_OEF374_00126"]
["ED_OEF374_00127"]
["ED_OEF374_00128"]
["ED_OEF374_00129"]
["ED_OEF374_00130"]
["ED_OEF374_00131"]
["ED_OEF374_00132"]
["ED_OEF374_00133"]
["ED_OEF374_00134"]
["ED_OEF374_00135"]
["ED_OEF374_00136"]
["ED_OEF374_00137"]
["ED_OEF374_00138"]
["ED_OEF374_00139"]
["ED_OEF374_00140"]
["ED_OEF374_00141"]
["ED_OEF374_00142"]
["ED_OEF374_00143"]
["ED_OEF374_00144"]
["ED_OEF374_00145"]
["ED_OEF374_00146"]
["ED_OEF374_00147"]
["ED_OEF374_00148"]
["ED_OEF374_00149"]
["ED_OEF374_00150"]
["ED_OEF374_00151"]
["ED_OEF374_00152"]
["ED_OEF374_00153"]
["ED_OEF374_00154"]
["ED_OEF374_00155"]
["ED_OEF374_00156"]
["ED_OEF374_00157"]
["ED_OEF374_00158"]
["ED_OEF374_00159"]
["ED_OEF374_00160"]
["ED_OEF374_00161"]
["ED_OEF374_00162"]
["ED_OEF374_00163"]
["ED_OEF374_00164"]
["ED_OEF374_00165"]
["ED_OEF374_00166"]
["ED_OEF374_00167"]
["ED_OEF374_00168"]
["ED_OEF374_00169"]
["ED_OEF374_00170"]
["ED_OEF374_00171"]
["ED_OEF374_00172"]
["ED_OEF374_00173"]
["ED_OEF374_00174"]
["ED_OEF374_00175"]
["ED_OEF374_00176"]
["ED_OEF374_00177"]
["ED_OEF374_00178"]
["ED_OEF374_00179"]
["ED_OEF374_00180"]
["ED_OEF374_00181"]
["ED_OEF374_00182"]
["ED_OEF374_00183"]
["ED_OEF374_00184"]
["ED_OEF374_00185"]
["ED_OEF374_00186"]
["ED_OEF374_00187"]
["ED_OEF374_00188"]
["ED_OEF374_00189"]
["ED_OEF374_00190"]
["ED_OEF374_00191"]
["ED_OEF374_00192"]
["ED_OEF374_00193"]
["ED_OEF374_00194"]
["ED_OEF374_00195"]
["ED_OEF374_00196"]
["ED_OEF374_00197"]
["ED_OEF374_00198"]
["ED_OEF374_00199"]
["ED_OEF374_00200"]
["ED_OEF374_00201"]
["ED_OEF374_00202"]
["ED_OEF374_00203"]
["ED_OEF374_00204"]
["ED_OEF374_00205"]
["ED_OEF374_00206"]
["ED_OEF374_00207"]
["ED_OEF374_00208"]
["ED_OEF374_00209"]
["ED_OEF374_00210"]
["ED_OEF374_00211"]
["ED_OEF374_00212"]
["ED_OEF374_00213"]
["ED_OEF374_00214"]
["ED_OEF374_00215"]
["ED_OEF374_00216"]
["ED_OEF374_00217"]
["ED_OEF374_00218"]
["ED_OEF374_00219"]
["ED_OEF374_00220"]
["ED_OEF374_00221"]
["ED_OEF374_00222"]
["ED_OEF374_00223"]
["ED_OEF374_00224"]
["ED_OEF374_00225"]
["ED_OEF374_00226"]
["ED_OEF374_00227"]
["ED_OEF374_00228"]
["ED_OEF374_00229"]
["ED_OEF374_00230"]
["ED_OEF374_00231"]
["ED_OEF374_00232"]
["ED_OEF374_00233"]
["ED_OEF374_00234"]
["ED_OEF374_00235"]
["ED_OEF374_00236"]
["ED_OEF374_00237"]
["ED_OEF374_00238"]
["ED_OEF374_00239"]
["ED_OEF374_00240"]
["ED_OEF374_00241"]
["ED_OEF374_00242"]
["ED_OEF374_00243"]
["ED_OEF374_00244"]
["ED_OEF374_00245"]
["ED_OEF374_00246"]
["ED_OEF374_00247"]
["ED_OEF374_00248"]
["ED_OEF374_00249"]
["ED_OEF374_00250"]
["ED_OEF374_00251"]
["ED_OEF374_00252"]
["ED_OEF374_00253"]
["ED_OEF374_00254"]
["ED_OEF374_00255"]
["ED_OEF374_00256"]
["ED_OEF374_00257"]
["ED_OEF374_00258"]
["ED_OEF374_00259"]
["ED_OEF374_00260"]
["ED_OEF374_00261"]
["ED_OEF374_00262"]
["ED_OEF374_00263"]
["ED_OEF374_00264"]
["ED_OEF374_00265"]
["ED_OEF374_00266"]
["ED_OEF374_00267"]
["ED_OEF374_00268"]
["ED_OEF374_00269"]
["ED_OEF374_00270"]
["ED_OEF374_00271"]
["ED_OEF374_00272"]
["ED_OEF374_00273"]
["ED_OEF374_00274"]
["ED_OEF374_00275"]
["ED_OEF374_00276"]
["ED_OEF374_00277"]
["ED_OEF374_00278"]
["ED_OEF374_00279"]
["ED_OEF374_00280"]
["ED_OEF374_00281"]
["ED_OEF374_00282"]
["ED_OEF374_00283"]
["ED_OEF374_00284"]
["ED_OEF374_00285"]
["ED_OEF374_00286"]
["ED_OEF374_00287"]
["ED_OEF374_00288"]
["ED_OEF374_00289"]
["ED_OEF374_00290"]
["ED_OEF374_00291"]
["ED_OEF374_00292"]
["ED_OEF374_00293"]
["ED_OEF374_00294"]
["ED_OEF374_00295"]
["ED_OEF374_00296"]
["ED_OEF374_00297"]
["ED_OEF374_00298"]
["ED_OEF374_00299"]
["ED_OEF374_00300"]
["ED_OEF374_00301"]
["ED_OEF374_00302"]
["ED_OEF374_00303"]
["ED_OEF374_00304"]
["ED_OEF374_00305"]
["ED_OEF374_00306"]
["ED_OEF374_00307"]
["ED_OEF374_00308"]
["ED_OEF374_00309"]
["ED_OEF374_00310"]
["ED_OEF374_00311"]
["ED_OEF374_00312"]
["ED_OEF374_00313"]
["ED_OEF374_00314"]
["ED_OEF374_00315"]
["ED_OEF374_00316"]
["ED_OEF374_00317"]
["ED_OEF374_00318"]
["ED_OEF374_00319"]
["ED_OEF374_00320"]
["ED_OEF374_00321"]
["ED_OEF374_00322"]
["ED_OEF374_00323"]
["ED_OEF374_00324"]
["ED_OEF374_00325"]
["ED_OEF374_00326"]
["ED_OEF374_00327"]
["ED_OEF374_00328"]
["ED_OEF374_00329"]
["ED_OEF374_00330"]
["ED_OEF374_00331"]
["ED_OEF374_00332"]
["ED_OEF374_00333"]
["ED_OEF374_00334"]
["ED_OEF374_00335"]
["ED_OEF374_00336"]
["ED_OEF374_00337"]
["ED_OEF374_00338"]
["ED_OEF374_00339"]
["ED_OEF374_00340"]
["ED_OEF374_00341"]
["ED_OEF374_00342"]
["ED_OEF374_00343"]
["ED_OEF374_00344"]
["ED_OEF374_00345"]
["ED_OEF374_00346"]
["ED_OEF374_00347"]
["ED_OEF374_00348"]
["ED_OEF374_00349"]
["ED_OEF374_00350"]
["ED_OEF374_00351"]
["ED_OEF374_00352"]
["ED_OEF374_00353"]
["ED_OEF374_00354"]
["ED_OEF374_00355"]
["ED_OEF374_00356"]
["ED_OEF374_00357"]
["ED_OEF374_00358"]
["ED_OEF374_00359"]
["ED_OEF374_00360"]
["ED_OEF374_00361"]
["ED_OEF374_00362"]
["ED_OEF374_00363"]
["ED_OEF374_00364"]
["ED_OEF374_00365"]
["ED_OEF374_00366"]
["ED_OEF374_00367"]
["ED_OEF374_00368"]
["ED_OEF374_00369"]
["ED_OEF374_00370"]
["ED_OEF374_00371"]
["ED_OEF374_00372"]
["ED_OEF374_00373"]
["ED_OEF374_00374"]
["ED_OEF374_00375"]
["ED_OEF374_00376"]
["ED_OEF374_00377"]
["ED_OEF374_00378"]
["ED_OEF374_00379"]
["ED_OEF374_00380"]
["ED_OEF374_00381"]
["ED_OEF374_00382"]
["ED_OEF374_00383"]
["ED_OEF374_00384"]
["ED_OEF374_00385"]
["ED_OEF374_00386"]
["ED_OEF374_00387"]
["ED_OEF374_00388"]
["ED_OEF374_00389"]
["ED_OEF374_00390"]
["ED_OEF374_00391"]
["ED_OEF374_00392"]
["ED_OEF374_00393"]
["ED_OEF374_00394"]
["ED_OEF374_00395"]
["ED_OEF374_00396"]
["ED_OEF374_00397"]
["ED_OEF374_00398"]
["ED_OEF374_00399"]
["ED_OEF374_00400"]
["ED_OEF374_00401"]
["ED_OEF374_00402"]
["ED_OEF374_00403"]
["ED_OEF374_00404"]
["ED_OEF374_00405"]
["ED_OEF374_00406"]
["ED_OEF374_00407"]
["ED_OEF374_00408"]
["ED_OEF374_00409"]
["ED_OEF374_00410"]
["ED_OEF374_00411"]
["ED_OEF374_00412"]
["ED_OEF374_00413"]
["ED_OEF374_00414"]
["ED_OEF374_00415"]
["ED_OEF374_00416"]
["ED_OEF374_00417"]
["ED_OEF374_00418"]
["ED_OEF374_00419"]
["ED_OEF374_00420"]
["ED_OEF374_00421"]
["ED_OEF374_00422"]
["ED_OEF374_00423"]
["ED_OEF374_00424"]
["ED_OEF374_00425"]
["ED_OEF374_00426"]
["ED_OEF374_00427"]
["ED_OEF374_00428"]
["ED_OEF374_00429"]
["ED_OEF374_00430"]
["ED_OEF374_00431"]
["ED_OEF374_00432"]
["ED_OEF374_00433"]
["ED_OEF374_00434"]
["ED_OEF374_00435"]
["ED_OEF374_00436"]
["ED_OEF374_00437"]
["ED_OEF374_00438"]
["ED_OEF374_00439"]
["ED_OEF374_00440"]
["ED_OEF374_00441"]
["ED_OEF374_00442"]
["ED_OEF374_00443"]
["ED_OEF374_00444"]
["ED_OEF374_00445"]
["ED_OEF374_00446"]
["ED_OEF374_00447"]
["ED_OEF374_00448"]
["ED_OEF374_00449"]
["ED_OEF374_00450"]
["ED_OEF374_00451"]
["ED_OEF374_00452"]
["ED_OEF374_00453"]
["ED_OEF374_00454"]
["ED_OEF374_00455"]
["ED_OEF374_00456"]
["ED_OEF374_00457"]
["ED_OEF374_00458"]
["ED_OEF374_00459"]
["ED_OEF374_00460"]
["ED_OEF374_00461"]
["ED_OEF374_00462"]
["ED_OEF374_00463"]
["ED_OEF374_00464"]
["ED_OEF374_00465"]
["ED_OEF374_00466"]
["ED_OEF374_00467"]
["ED_OEF374_00468"]
["ED_OEF374_00469"]
["ED_OEF374_00470"]
["ED_OEF374_00471"]
["ED_OEF374_00472"]
["ED_OEF374_00473"]
["ED_OEF374_00474"]
["ED_OEF374_00475"]
["ED_OEF374_00476"]
["ED_OEF374_00477"]
["ED_OEF374_00478"]
["ED_OEF374_00479"]
["ED_OEF374_00480"]
["ED_OEF374_00481"]
["ED_OEF374_00482"]
["ED_OEF374_00483"]
["ED_OEF374_00484"]
["ED_OEF374_00485"]
["ED_OEF374_00486"]
["ED_OEF374_00487"]
["ED_OEF374_00488"]
["ED_OEF374_00489"]
["ED_OEF374_00490"]
["ED_OEF374_00491"]
["ED_OEF374_00492"]
["ED_OEF374_00493"]
["ED_OEF374_00494"]
["ED_OEF374_00495"]
["ED_OEF374_00496"]
["ED_OEF374_00497"]
["ED_OEF374_00498"]
["ED_OEF374_00499"]
["ED_OEF374_00500"]
["ED_OEF374_00501"]
["ED_OEF374_00502"]
["ED_OEF374_00503"]
["ED_OEF374_00504"]
["ED_OEF374_00505"]
["ED_OEF374_00506"]
["ED_OEF374_00507"]
["ED_OEF374_00508"]
["ED_OEF374_00509"]
["ED_OEF374_00510"]
["ED_OEF374_00511"]
["ED_OEF374_00512"]
["ED_OEF374_00513"]
["ED_OEF374_00514"]
["ED_OEF374_00515"]
["ED_OEF374_00516"]
["ED_OEF374_00517"]
["ED_OEF374_00518"]
["ED_OEF374_00519"]
["ED_OEF374_00520"]
["ED_OEF374_00521"]
["ED_OEF374_00522"]
["ED_OEF374_00523"]
["ED_OEF374_00524"]
["ED_OEF374_00525"]
["ED_OEF374_00526"]
["ED_OEF374_00527"]
["ED_OEF374_00528"]
["ED_OEF374_00529"]
["ED_OEF374_00530"]
["ED_OEF374_00531"]
["ED_OEF374_00532"]
["ED_OEF374_00533"]
["ED_OEF374_00534"]
["ED_OEF374_00535"]
["ED_OEF374_00536"]
["ED_OEF374_00537"]
["ED_OEF374_00538"]
["ED_OEF374_00539"]
["ED_OEF374_00540"]
["ED_OEF374_00541"]
["ED_OEF374_00542"]
["ED_OEF374_00543"]
["ED_OEF374_00544"]
["ED_OEF374_00545"]
["ED_OEF374_00546"]
["ED_OEF374_00547"]
["ED_OEF374_00548"]
["ED_OEF374_00549"]
["ED_OEF374_00550"]
["ED_OEF374_00551"]
["ED_OEF374_00552"]
["ED_OEF374_00553"]
["ED_OEF374_00554"]
["ED_OEF374_00555"]
["ED_OEF374_00556"]
["ED_OEF374_00557"]
["ED_OEF374_00558"]
["ED_OEF374_00559"]
["ED_OEF374_00560"]
["ED_OEF374_00561"]
["ED_OEF374_00562"]
["ED_OEF374_00563"]
["ED_OEF374_00564"]
["ED_OEF374_00565"]
["ED_OEF374_00566"]
["ED_OEF374_00567"]
["ED_OEF374_00568"]
["ED_OEF374_00569"]
["ED_OEF374_00570"]
["ED_OEF374_00571"]
["ED_OEF374_00572"]
["ED_OEF374_00573"]
["ED_OEF374_00574"]
["ED_OEF374_00575"]
["ED_OEF374_00576"]
["ED_OEF374_00577"]
["ED_OEF374_00578"]
["ED_OEF374_00579"]
["ED_OEF374_00580"]
["ED_OEF374_00581"]
["ED_OEF374_00582"]
["ED_OEF374_00583"]
["ED_OEF374_00584"]
["ED_OEF374_00585"]
["ED_OEF374_00586"]
["ED_OEF374_00587"]
["ED_OEF374_00588"]
["ED_OEF374_00589"]
["ED_OEF374_00590"]
["ED_OEF374_00591"]
["ED_OEF374_00592"]
["ED_OEF374_00593"]
["ED_OEF374_00594"]
["ED_OEF374_00595"]
["ED_OEF374_00596"]
["ED_OEF374_00597"]
["ED_OEF374_00598"]
["ED_OEF374_00599"]
["ED_OEF374_00600"]
["ED_OEF374_00601"]
["ED_OEF374_00602"]
["ED_OEF374_00603"]
["ED_OEF374_00604"]
["ED_OEF374_00605"]
["ED_OEF374_00606"]
["ED_OEF374_00607"]
["ED_OEF374_00608"]
["ED_OEF374_00609"]
["ED_OEF374_00610"]
["ED_OEF374_00611"]
["ED_OEF374_00612"]
["ED_OEF374_00613"]
["ED_OEF374_00614"]
["ED_OEF374_00615"]
["ED_OEF374_00616"]
["ED_OEF374_00617"]
["ED_OEF374_00618"]
["ED_OEF374_00619"]
["ED_OEF374_00620"]
["ED_OEF374_00621"]
["ED_OEF374_00622"]
["ED_OEF374_00623"]
["ED_OEF374_00624"]
["ED_OEF374_00625"]
["ED_OEF374_00626"]
["ED_OEF374_00627"]
["ED_OEF374_00628"]
["ED_OEF374_00629"]
["ED_OEF374_00630"]
["ED_OEF374_00631"]
["ED_OEF374_00632"]
["ED_OEF374_00633"]
["ED_OEF374_00634"]
["ED_OEF374_00635"]
["ED_OEF374_00636"]
["ED_OEF374_00637"]
["ED_OEF374_00638"]
["ED_OEF374_00639"]
["ED_OEF374_00640"]
["ED_OEF374_00641"]
["ED_OEF374_00642"]
["ED_OEF374_00643"]
["ED_OEF374_00644"]
["ED_OEF374_00645"]
["ED_OEF374_00646"]
["ED_OEF374_00647"]
["ED_OEF374_00648"]
["ED_OEF374_00649"]
["ED_OEF374_00650"]
["ED_OEF374_00651"]
["ED_OEF374_00652"]
["ED_OEF374_00653"]
["ED_OEF374_00654"]
["ED_OEF374_00655"]
["ED_OEF374_00656"]
["ED_OEF374_00657"]
["ED_OEF374_00658"]
["ED_OEF374_00659"]
["ED_OEF374_00660"]
["ED_OEF374_00661"]
["ED_OEF374_00662"]
["ED_OEF374_00663"]
["ED_OEF374_00664"]
["ED_OEF374_00665"]
["ED_OEF374_00666"]
["ED_OEF374_00667"]
["ED_OEF374_00668"]
["ED_OEF374_00669"]
["ED_OEF374_00670"]
["ED_OEF374_00671"]
["ED_OEF374_00672"]
["ED_OEF374_00673"]
["ED_OEF374_00674"]
["ED_OEF374_00675"]
["ED_OEF374_00676"]
["ED_OEF374_00677"]
["ED_OEF374_00678"]
["ED_OEF374_00679"]
["ED_OEF374_00680"]
["ED_OEF374_00681"]
["ED_OEF374_00682"]
["ED_OEF374_00683"]
["ED_OEF374_00684"]
["ED_OEF374_00685"]
["ED_OEF374_00686"]
["ED_OEF374_00687"]
["ED_OEF374_00688"]
["ED_OEF374_00689"]
["ED_OEF374_00690"]
["ED_OEF374_00691"]
["ED_OEF374_00692"]
["ED_OEF374_00693"]
["ED_OEF374_00694"]
["ED_OEF374_00695"]
["ED_OEF374_00696"]
["ED_OEF374_00697"]
["ED_OEF374_00698"]
["ED_OEF374_00699"]
["ED_OEF374_00700"]
["ED_OEF374_00701"]
["ED_OEF374_00702"]
["ED_OEF374_00703"]
["ED_OEF374_00704"]
["ED_OEF374_00705"]
["ED_OEF374_00706"]
["ED_OEF374_00707"]
["ED_OEF374_00708"]
["ED_OEF374_00709"]
["ED_OEF374_00710"]
["ED_OEF374_00711"]
["ED_OEF374_00712"]
["ED_OEF374_00713"]
["ED_OEF374_00714"]
["ED_OEF374_00715"]
["ED_OEF374_00716"]
["ED_OEF374_00717"]
["ED_OEF374_00718"]
["ED_OEF374_00719"]
["ED_OEF374_00720"]
["ED_OEF374_00721"]
["ED_OEF374_00722"]
["ED_OEF374_00723"]
["ED_OEF374_00724"]
["ED_OEF374_00725"]
["ED_OEF374_00726"]
["ED_OEF374_00727"]
["ED_OEF374_00728"]
["ED_OEF374_00729"]
["ED_OEF374_00730"]
["ED_OEF374_00731"]
["ED_OEF374_00732"]
["ED_OEF374_00733"]
["ED_OEF374_00734"]
["ED_OEF374_00735"]
["ED_OEF374_00736"]
["ED_OEF374_00737"]
["ED_OEF374_00738"]
["ED_OEF374_00739"]
["ED_OEF374_00740"]
["ED_OEF374_00741"]
["ED_OEF374_00742"]
["ED_OEF374_00743"]
["ED_OEF374_00744"]
["ED_OEF374_00745"]
["ED_OEF374_00746"]
["ED_OEF374_00747"]
["ED_OEF374_00748"]
["ED_OEF374_00749"]
["ED_OEF374_00750"]
["ED_OEF374_00751"]
["ED_OEF374_00752"]
["ED_OEF374_00753"]
["ED_OEF374_00754"]
["ED_OEF374_00755"]
["ED_OEF374_00756"]
["ED_OEF374_00757"]
["ED_OEF374_00758"]
["ED_OEF374_00759"]
["ED_OEF374_00760"]
["ED_OEF374_00761"]
["ED_OEF374_00762"]
["ED_OEF374_00763"]
["ED_OEF374_00764"]
["ED_OEF374_00765"]
["ED_OEF374_00766"]
["ED_OEF374_00767"]
["ED_OEF374_00768"]
["ED_OEF374_00769"]
["ED_OEF374_00770"]
["ED_OEF374_00771"]
["ED_OEF374_00772"]
["ED_OEF374_00773"]
["ED_OEF374_00774"]
["ED_OEF374_00775"]
["ED_OEF374_00776"]
["ED_OEF374_00777"]
["ED_OEF374_00778"]
["ED_OEF374_00779"]
["ED_OEF374_00780"]
["ED_OEF374_00781"]
["ED_OEF374_00782"]
["ED_OEF374_00783"]
["ED_OEF374_00784"]
["ED_OEF374_00785"]
["ED_OEF374_00786"]
["ED_OEF374_00787"]
["ED_OEF374_00788"]
["ED_OEF374_00789"]
["ED_OEF374_00790"]
["ED_OEF374_00791"]
["ED_OEF374_00792"]
["ED_OEF374_00793"]
["ED_OEF374_00794"]
["ED_OEF374_00795"]
["ED_OEF374_00796"]
["ED_OEF374_00797"]
["ED_OEF374_00798"]
["ED_OEF374_00799"]
["ED_OEF374_00800"]
["ED_OEF374_00801"]
["ED_OEF374_00802"]
["ED_OEF374_00803"]
["ED_OEF374_00804"]
["ED_OEF374_00805"]
["ED_OEF374_00806"]
["ED_OEF374_00807"]
["ED_OEF374_00808"]
["ED_OEF374_00809"]
["ED_OEF374_00810"]
["ED_OEF374_00811"]
["ED_OEF374_00812"]
["ED_OEF374_00813"]
["ED_OEF374_00814"]
["ED_OEF374_00815"]
["ED_OEF374_00816"]
["ED_OEF374_00817"]
["ED_OEF374_00818"]
["ED_OEF374_00819"]
["ED_OEF374_00820"]
["ED_OEF374_00821"]
["ED_OEF374_00822"]
["ED_OEF374_00823"]
["ED_OEF374_00824"]
["ED_OEF374_00825"]
["ED_OEF374_00826"]
["ED_OEF374_00827"]
["ED_OEF374_00828"]
["ED_OEF374_00829"]
["ED_OEF374_00830"]
["ED_OEF374_00831"]
["ED_OEF374_00832"]
["ED_OEF374_00833"]
["ED_OEF374_00834"]
["ED_OEF374_00835"]
["ED_OEF374_00836"]
["ED_OEF374_00837"]
["ED_OEF374_00838"]
["ED_OEF374_00839"]
["ED_OEF374_00840"]
["ED_OEF374_00841"]
["ED_OEF374_00842"]
["ED_OEF374_00843"]
["ED_OEF374_00844"]
["ED_OEF374_00845"]
["ED_OEF374_00846"]
["ED_OEF374_00847"]
["ED_OEF374_00848"]
["ED_OEF374_00849"]
["ED_OEF374_00850"]
["ED_OEF374_00851"]
["ED_OEF374_00852"]
["ED_OEF374_00853"]
["ED_OEF374_00854"]
["ED_OEF374_00855"]
["ED_OEF374_00856"]
["ED_OEF374_00857"]
["ED_OEF374_00858"]
["ED_OEF374_00859"]
["ED_OEF374_00860"]
["ED_OEF374_00861"]
["ED_OEF374_00862"]
["ED_OEF374_00863"]
["ED_OEF374_00864"]
["ED_OEF374_00865"]
["ED_OEF374_00866"]
["ED_OEF374_00867"]
["ED_OEF374_00868"]
["ED_OEF374_00869"]
["ED_OEF374_00870"]
["ED_OEF374_00871"]
["ED_OEF374_00872"]
["ED_OEF374_00873"]
["ED_OEF374_00874"]
["ED_OEF374_00875"]
["ED_OEF374_00876"]
["ED_OEF374_00877"]
["ED_OEF374_00878"]
["ED_OEF374_00879"]
["ED_OEF374_00880"]
["ED_OEF374_00881"]
["ED_OEF374_00882"]
["ED_OEF374_00883"]
["ED_OEF374_00884"]
["ED_OEF374_00885"]
["ED_OEF374_00886"]
["ED_OEF374_00887"]
["ED_OEF374_00888"]
["ED_OEF374_00889"]
["ED_OEF374_00890"]
["ED_OEF374_00891"]
["ED_OEF374_00892"]
["ED_OEF374_00893"]
["ED_OEF374_00894"]
["ED_OEF374_00895"]
["ED_OEF374_00896"]
["ED_OEF374_00897"]
["ED_OEF374_00898"]
["ED_OEF374_00899"]
["ED_OEF374_00900"]
["ED_OEF374_00901"]
["ED_OEF374_00902"]
["ED_OEF374_00903"]
["ED_OEF374_00904"]
["ED_OEF374_00905"]
["ED_OEF374_00906"]
["ED_OEF374_00907"]
["ED_OEF374_00908"]
["ED_OEF374_00909"]
["ED_OEF374_00910"]
["ED_OEF374_00911"]
["ED_OEF374_00912"]
["ED_OEF374_00913"]
["ED_OEF374_00914"]
["ED_OEF374_00915"]
["ED_OEF374_00916"]
["ED_OEF374_00917"]
["ED_OEF374_00918"]
["ED_OEF374_00919"]
["ED_OEF374_00920"]
["ED_OEF374_00921"]
["ED_OEF374_00922"]
["ED_OEF374_00923"]
["ED_OEF374_00924"]
["ED_OEF374_00925"]
["ED_OEF374_00926"]
["ED_OEF374_00927"]
["ED_OEF374_00928"]
["ED_OEF374_00929"]
["ED_OEF374_00930"]
["ED_OEF374_00931"]
["ED_OEF374_00932"]
["ED_OEF374_00933"]
["ED_OEF374_00934"]
["ED_OEF374_00935"]
["ED_OEF374_00936"]
["ED_OEF374_00937"]
["ED_OEF374_00938"]
["ED_OEF374_00939"]
["ED_OEF374_00940"]
["ED_OEF374_00941"]
["ED_OEF374_00942"]
["ED_OEF374_00943"]
["ED_OEF374_00944"]
["ED_OEF374_00945"]
["ED_OEF374_00946"]
["ED_OEF374_00947"]
["ED_OEF374_00948"]
["ED_OEF374_00949"]
["ED_OEF374_00950"]
["ED_OEF374_00951"]
["ED_OEF374_00952"]
["ED_OEF374_00953"]
["ED_OEF374_00954"]
["ED_OEF374_00955"]
["ED_OEF374_00956"]
["ED_OEF374_00957"]
["ED_OEF374_00958"]
["ED_OEF374_00959"]
["ED_OEF374_00960"]
["ED_OEF374_00961"]
["ED_OEF374_00962"]
["ED_OEF374_00963"]
["ED_OEF374_00964"]
["ED_OEF374_00965"]
["ED_OEF374_00966"]
["ED_OEF374_00967"]
["ED_OEF374_00968"]
["ED_OEF374_00969"]
["ED_OEF374_00970"]
["ED_OEF374_00971"]
["ED_OEF374_00972"]
["ED_OEF374_00973"]
["ED_OEF374_00974"]
["ED_OEF374_00975"]
["ED_OEF374_00976"]
["ED_OEF374_00977"]
["ED_OEF374_00978"]
["ED_OEF374_00979"]
["ED_OEF374_00980"]
["ED_OEF374_00981"]
["ED_OEF374_00982"]
["ED_OEF374_00983"]
["ED_OEF374_00984"]
["ED_OEF374_00985"]
["ED_OEF374_00986"]
["ED_OEF374_00987"]
["ED_OEF374_00988"]
["ED_OEF374_00989"]
["ED_OEF374_00990"]
["ED_OEF374_00991"]
["ED_OEF374_00992"]
["ED_OEF374_00993"]
["ED_OEF374_00994"]
["ED_OEF374_00995"]
["ED_OEF374_00996"]
["ED_OEF374_00997"]
["ED_OEF374_00998"]
["ED_OEF374_00999"]
["ED_OEF374_01000"]
["ED_OEF374_01001"]
["ED_OEF374_01002"]
["ED_OEF374_01003"]
["ED_OEF374_01004"]
["ED_OEF374_01005"]
["ED_OEF374_01006"]
["ED_OEF374_01007"]
["ED_OEF374_01008"]
["ED_OEF374_01009"]
["ED_OEF374_01010"]
["ED_OEF374_01011"]
["ED_OEF374_01012"]
["ED_OEF374_01013"]
["ED_OEF374_01014"]
["ED_OEF374_01015"]
["ED_OEF374_01016"]
["ED_OEF374_01017"]
["ED_OEF374_01018"]
["ED_OEF374_01019"]
["ED_OEF374_01020"]
["ED_OEF374_01021"]
["ED_OEF374_01022"]
["ED_OEF374_01023"]
["ED_OEF374_01024"]
["ED_OEF374_01025"]
["ED_OEF374_01026"]
["ED_OEF374_01027"]
["ED_OEF374_01028"]
["ED_OEF374_01029"]
["ED_OEF374_01030"]
["ED_OEF374_01031"]
["ED_OEF374_01032"]
["ED_OEF374_01033"]
["ED_OEF374_01034"]
["ED_OEF374_01035"]
["ED_OEF374_01036"]
["ED_OEF374_01037"]
["ED_OEF374_01038"]
["ED_OEF374_01039"]
["ED_OEF374_01040"]
["ED_OEF374_01041"]
["ED_OEF374_01042"]
["ED_OEF374_01043"]
["ED_OEF374_01044"]
["ED_OEF374_01045"]
["ED_OEF374_01046"]
["ED_OEF374_01047"]
["ED_OEF374_01048"]
["ED_OEF374_01049"]
["ED_OEF374_01050"]
["ED_OEF374_01051"]
["ED_OEF374_01052"]
["ED_OEF374_01053"]
["ED_OEF374_01054"]
["ED_OEF374_01055"]
["ED_OEF374_01056"]
["ED_OEF374_01057"]
["ED_OEF374_01058"]
["ED_OEF374_01059"]
["ED_OEF374_01060"]
["ED_OEF374_01061"]
["ED_OEF374_01062"]
["ED_OEF374_01063"]
["ED_OEF374_01064"]
["ED_OEF374_01065"]
["ED_OEF374_01066"]
["ED_OEF374_01067"]
["ED_OEF374_01068"]
["ED_OEF374_01069"]
["ED_OEF374_01070"]
["ED_OEF374_01071"]
["ED_OEF374_01072"]
["ED_OEF374_01073"]
["ED_OEF374_01074"]
["ED_OEF374_01075"]
["ED_OEF374_01076"]
["ED_OEF374_01077"]
["ED_OEF374_01078"]
["ED_OEF374_01079"]
["ED_OEF374_01080"]
["ED_OEF374_01081"]
["ED_OEF374_01082"]
["ED_OEF374_01083"]
["ED_OEF374_01084"]
["ED_OEF374_01085"]
["ED_OEF374_01086"]
["ED_OEF374_01087"]
["ED_OEF374_01088"]
["ED_OEF374_01089"]
["ED_OEF374_01090"]
["ED_OEF374_01091"]

{"sheet":"Unlocked worksheet","index":11,"n_rows":0,"n_cols":0,"rows_kept":0,"cut":false,"hidden":false,"merged":[]}